Workbook

Sheet Control
C30: Numerical value
C31: Suggested formula
C32: Probabilistic parameters
C33: Data specified elsewhere
C34: Suggested formula edited

Sheet Inert Restorati (hidden)
A1: SOURCE CONCENTRATIONS: Inert Restorati
A3: Source Data Options | B3: Source Type
A11: Target Standard
A13: Select which Quality Standard (defined on the Contaminants sheet) to apply
A14: Not Specified
A17: Source Geometry
A19: Inert_Restorati_Source_length | C19: m
A20: Inert_Restorati_Source_width | C20: m
A21: Inert_Restorati_Source_area | B21: =area_a -> 191007 | C21: m2
A22: Inert_Restorati_Source_thickness | B22: =thick_a -> 6.3 | C22: m
A23: Inert_Restorati_Source_volume | B23: =vol_a -> 412336.2049 | C23: m3
A26: General Source Properties
A28: Inert_Restorati_Source_field_capacity | B28: [-] | C28: 0.3
A29: Distribution | C29: constant
A30: Inert_Restorati_Source_field_capacity_param1
A31: Inert_Restorati_Source_field_capacity_param2
A32: Inert_Restorati_Source_field_capacity_param3
A35: Inert_Restorati_Source_porosity_total | B35: [-]
A36: Distribution | C36: constant
A37: Inert_Restorati_Source_porosity_total_param1
A38: Inert_Restorati_Source_porosity_total_param2
A39: Inert_Restorati_Source_porosity_total_param3
A42: Inert_Restorati_Source_porosity_water_filled | B42: [-]
A43: Distribution | C43: constant
A44: Inert_Restorati_Source_porosity_water_filled_param1
A45: Inert_Restorati_Source_porosity_water_filled_param2
A46: Inert_Restorati_Source_porosity_water_filled_param3
A49: Inert_Restorati_Source_porosity_air_filled | B49: [-] | C49: =Inert_Restorati_Source_porosity_total - Inert_Restorati_Source_porosity_water_filled -> 0
A50: Distribution | C50: constant
A51: Inert_Restorati_Source_porosity_air_filled_param1
A52: Inert_Restorati_Source_porosity_air_filled_param2
A53: Inert_Restorati_Source_porosity_air_filled_param3
A56: Inert_Restorati_Source_dry_bulk_density | B56: kg/m3
A57: Distribution | C57: constant
A58: Inert_Restorati_Source_dry_bulk_density_param1
A59: Inert_Restorati_Source_dry_bulk_density_param2
A60: Inert_Restorati_Source_dry_bulk_density_param3
A63: Inert_Restorati_Source_fraction_organic_carbon | B63: [-]
A64: Distribution | C64: constant
A65: Inert_Restorati_Source_fraction_organic_carbon_param1
A66: Inert_Restorati_Source_fraction_organic_carbon_param2
A67: Inert_Restorati_Source_fraction_organic_carbon_param3
A71: Source Contaminant Information
A73: Source determinand names | C73: =IF( ISTEXT( (Contaminants_Source_determinand_names Contaminants_Species1)), (Contaminants_Source_determinand_names Contaminants_Species1), "Undefined" ) -> Molybdenum | D73: =IF( ISTEXT( (Contaminants_Source_determinand_names Contaminants_Species2)), (Contaminants_Source_determinand_names Contaminants_Species2), "Undefined" ) -> Lead | E73: =IF( ISTEXT( (Contaminants_Source_determinand_names Contaminants_Species3)), (Contaminants_Source_determinand_names Contaminants_Species3), "Undefined" ) -> Copper | F73: =IF( ISTEXT( (Contaminants_Source_determinand_names Contaminants_Species4)), (Contaminants_Source_determinand_names Contaminants_Species4), "Undefined" ) -> Mercury | G73: =IF( ISTEXT( (Contaminants_Source_determinand_names Contaminants_Species5)), (Contaminants_Source_determinand_names Contaminants_Species5), "Undefined" ) -> Cadmium | H73: =IF( ISTEXT( (Contaminants_Source_determinand_names Contaminants_Species6)), (Contaminants_Source_determinand_names Contaminants_Species6), "Undefined" ) -> Chromium | I73: =IF( ISTEXT( (Contaminants_Source_determinand_names Contaminants_Species7)), (Contaminants_Source_determinand_names Contaminants_Species7), "Undefined" ) -> Antimony | J73: =IF( ISTEXT( (Contaminants_Source_determinand_names Contaminants_Species8)), (Contaminants_Source_determinand_names Contaminants_Species8), "Undefined" ) -> Barium
A75: Inert_Restorati_Pore_water_concentration | B75: mg/L | C75: 0.2 | D75: 0.15 | E75: =User_ScreeningAssessment_VoidA!E7 -> 0.6 | F75: =User_ScreeningAssessment_VoidA!E8 -> 0.002 | G75: 0.02 | H75: 0.1 | I75: =User_ScreeningAssessment_VoidA!E12 -> 0.1 | J75: 4
A76: Distribution | C76: constant | D76: constant | E76: constant | F76: constant | G76: constant | H76: constant | I76: constant | J76: constant
A77: Inert_Restorati_Pore_water_concentration_param1
A78: Inert_Restorati_Pore_water_concentration_param2
A79: Inert_Restorati_Pore_water_concentration_param3
A82: Inert_Restorati_Leaching_test_concentration | B82: mg/L
A83: Distribution | C83: constant | D83: constant | E83: constant | F83: constant | G83: constant | H83: constant | I83: constant | J83: constant
A84: Inert_Restorati_Leaching_test_concentration_param1
A85: Inert_Restorati_Leaching_test_concentration_param2
A86: Inert_Restorati_Leaching_test_concentration_param3
A89: Inert_Restorati_Soil_contaminant_concentration | B89: mg/kg
A90: Distribution | C90: constant | D90: constant | E90: constant | F90: constant | G90: constant | H90: constant | I90: constant | J90: constant
A91: Inert_Restorati_Soil_contaminant_concentration_param1
A92: Inert_Restorati_Soil_contaminant_concentration_param2
A93: Inert_Restorati_Soil_contaminant_concentration_param3
A96: Inert_Restorati_Source_solid_water_partitioning_coefficient_Kd | B96: L/kg | C96: =(Contaminants_Organic_Carbon_Water_Partition_Coefficient_Koc Contaminants_Species1) * ( Inert_Restorati_Source_fraction_organic_carbon) -> 0 | D96: =(Contaminants_Organic_Carbon_Water_Partition_Coefficient_Koc Contaminants_Species2) * ( Inert_Restorati_Source_fraction_organic_carbon) -> 0 | E96: =(Contaminants_Organic_Carbon_Water_Partition_Coefficient_Koc Contaminants_Species3) * ( Inert_Restorati_Source_fraction_organic_carbon) -> 0 | F96: =(Contaminants_Organic_Carbon_Water_Partition_Coefficient_Koc Contaminants_Species4) * ( Inert_Restorati_Source_fraction_organic_carbon) -> 0 | G96: =(Contaminants_Organic_Carbon_Water_Partition_Coefficient_Koc Contaminants_Species5) * ( Inert_Restorati_Source_fraction_organic_carbon) -> 0 | H96: =(Contaminants_Organic_Carbon_Water_Partition_Coefficient_Koc Contaminants_Species6) * ( Inert_Restorati_Source_fraction_organic_carbon) -> 0 | I96: =(Contaminants_Organic_Carbon_Water_Partition_Coefficient_Koc Contaminants_Species7) * ( Inert_Restorati_Source_fraction_organic_carbon) -> 0 | J96: =(Contaminants_Organic_Carbon_Water_Partition_Coefficient_Koc Contaminants_Species8) * ( Inert_Restorati_Source_fraction_organic_carbon) -> 0
A97: Distribution | C97: constant | D97: constant | E97: constant | F97: constant | G97: constant | H97: constant | I97: constant | J97: constant
A98: Inert_Restorati_Source_solid_water_partitioning_coefficient_Kd_param1
A99: Inert_Restorati_Source_solid_water_partitioning_coefficient_Kd_param2
A100: Inert_Restorati_Source_solid_water_partitioning_coefficient_Kd_param3
A103: Inert_Restorati_Initial_inventory | B103: kg | C103: =0.001 * (Inert_Restorati_Pore_water_concentration) * (Inert_Restorati_Source_field_capacity) * (Inert_Restorati_Source_volume) -> 24.7401723 | D103: 18.55512922 | E103: 74.22051689 | F103: 0.247401723 | G103: 2.47401723 | H103: 12.37008615 | I103: 12.37008615 | J103: 494.8034459
A104: Distribution | C104: constant | D104: constant | E104: constant | F104: constant | G104: constant | H104: constant | I104: constant | J104: constant
A105: Inert_Restorati_Initial_inventory_param1
A106: Inert_Restorati_Initial_inventory_param2
A107: Inert_Restorati_Initial_inventory_param3
A110: Inert_Restorati_Kappa_slope_value_m | B110: kg/L
A111: Distribution | C111: constant | D111: constant | E111: constant | F111: constant | G111: constant | H111: constant | I111: constant | J111: constant
A112: Inert_Restorati_Kappa_slope_value_m_param1
A113: Inert_Restorati_Kappa_slope_value_m_param2
A114: Inert_Restorati_Kappa_slope_value_m_param3
A117: Inert_Restorati_Kappa_intercept_value_c | B117: kg/L
A118: Distribution | C118: constant | D118: constant | E118: constant | F118: constant | G118: constant | H118: constant | I118: constant | J118: constant
A119: Inert_Restorati_Kappa_intercept_value_c_param1
A120: Inert_Restorati_Kappa_intercept_value_c_param2
A121: Inert_Restorati_Kappa_intercept_value_c_param3
A124: Inert_Restorati_Kappa_Value | B124: kg/L | C124: =IF(AND(ISNUMBER(Inert_Restorati_Kappa_slope_value_m),ISNUMBER(Inert_Restorati_Kappa_intercept_value_c),ISNUMBER(Inert_Restorati_Input_concentration)), IF(Inert_Restorati_Input_concentration>0,MAX(0,Inert_Restorati_Kappa_slope_value_m * LN(1000 * Inert_Restorati_Input_concentration) + Inert_Restorati_Kappa_intercept_value_c),""),"Not-used") -> Not-used | D124: Not-used | E124: Not-used | F124: Not-used | G124: Not-used | H124: Not-used | I124: Not-used | J124: Not-used
A125: Distribution | C125: constant | D125: constant | E125: constant | F125: constant | G125: constant | H125: constant | I125: constant | J125: constant
A126: Inert_Restorati_Kappa_Value_param1
A127: Inert_Restorati_Kappa_Value_param2
A128: Inert_Restorati_Kappa_Value_param3
A131: Inert_Restorati_Input_concentration | B131: mg/L | C131: =(Inert_Restorati_Pore_water_concentration) -> 0.2 | D131: 0.15 | E131: 0.6 | F131: 0.002 | G131: 0.02 | H131: 0.1 | I131: 0.1 | J131: 4

Sheet Contaminants
A1: CONTAMINANT INFORMATION
D3: Species1 | E3: Species2 | F3: Species3 | G3: Species4 | H3: Species5 | I3: Species6 | J3: Species7 | K3: Species8
A4: Source determinand names | C4: 8 | D4: Molybdenum | E4: Lead | F4: Copper | G4: Mercury | H4: Cadmium | I4: Chromium | J4: Antimony | K4: Barium
A7: Receptor Target Concentrations
B8: Name | D8: Values in mg/L
A9: Quality Standard 1 | B9: EAL (GW) | D9: =User_ScreeningAssessment_VoidA!G9 -> 0.0018 | E9: =User_ScreeningAssessment_VoidA!G11 -> 2e-05 | F9: =User_ScreeningAssessment_VoidA!G7 -> 0.00458 | G9: =User_ScreeningAssessment_VoidA!G8 -> 2e-05 | H9: =User_ScreeningAssessment_VoidA!G5 -> 0.0002 | I9: =User_ScreeningAssessment_VoidA!G6 -> 0.0005 | J9: =User_ScreeningAssessment_VoidA!G12 -> 0.0005 | K9: =User_ScreeningAssessment_VoidA!G4 -> 0.03875
A10: Quality Standard 2
A11: Quality Standard 3
A12: Quality Standard 4
B13: Not Specified
A15: Generic Contaminant Properties
A17: Contaminants_Solubility | B17: mg/L
A18: Distribution | D18: constant | E18: constant | F18: constant | G18: constant | H18: constant | I18: constant | J18: constant | K18: constant
A19: Contaminants_Solubility_param1
A20: Contaminants_Solubility_param2
A21: Contaminants_Solubility_param3
A24: Contaminants_Henrys_Law_Constant | B24: [-]
A25: Distribution | D25: constant | E25: constant | F25: constant | G25: constant | H25: constant | I25: constant | J25: constant | K25: constant
A26: Contaminants_Henrys_Law_Constant_param1
A27: Contaminants_Henrys_Law_Constant_param2
A28: Contaminants_Henrys_Law_Constant_param3
A31: Contaminants_Organic_Carbon_Water_Partition_Coefficient_Koc | B31: L/kg
A32: Distribution | D32: constant | E32: constant | F32: constant | G32: constant | H32: constant | I32: constant | J32: constant | K32: constant
A33: Contaminants_Organic_Carbon_Water_Partition_Coefficient_Koc_param1
A34: Contaminants_Organic_Carbon_Water_Partition_Coefficient_Koc_param2
A35: Contaminants_Organic_Carbon_Water_Partition_Coefficient_Koc_param3
A38: Contaminants_Free_Water_Diffusion_Coefficient | B38: m2/s | D38: =Free_Water_Diffusion_Coefficient -> 2e-09 | E38: 2e-09 | F38: 2e-09 | G38: 2e-09 | H38: 2e-09 | I38: 2e-09 | J38: 2e-09 | K38: 2e-09
A39: Distribution | D39: constant | E39: constant | F39: constant | G39: constant | H39: constant | I39: constant | J39: constant | K39: constant
A40: Contaminants_Free_Water_Diffusion_Coefficient_param1
A41: Contaminants_Free_Water_Diffusion_Coefficient_param2
A42: Contaminants_Free_Water_Diffusion_Coefficient_param3

Sheet Hydrogeology
A1: HYDROGEOLOGICAL UNITS
A3: Hydrogeological Units | C3: Attenuation Lay | D3: Beenham Grange
A5: Hydrogeology_Unit_Thickness | B5: m | C5: 1 | D5: =thick_a -> 6.3
A6: Distribution | C6: constant | D6: constant | E6: constant | F6: constant | G6: constant | H6: constant | I6: constant | J6: constant | K6: constant | L6: constant | M6: constant | N6: constant | O6: constant | P6: constant | Q6: constant | R6: constant
A7: Hydrogeology_Unit_Thickness_param1
A8: Hydrogeology_Unit_Thickness_param2
A9: Hydrogeology_Unit_Thickness_param3
A12: Hydrogeology_Log_Hydraulic_Conductivity | B12: log(m/s)
A13: Distribution | C13: constant | D13: constant | E13: constant | F13: constant | G13: constant | H13: constant | I13: constant | J13: constant | K13: constant | L13: constant | M13: constant | N13: constant | O13: constant | P13: constant | Q13: constant | R13: constant
A14: Hydrogeology_Log_Hydraulic_Conductivity_param1
A15: Hydrogeology_Log_Hydraulic_Conductivity_param2
A16: Hydrogeology_Log_Hydraulic_Conductivity_param3
A19: Hydrogeology_Hydraulic_Conductivity | B19: m/s | C19: =AL_K -> 1e-07 | D19: =BGF_K -> 0.001412 | E19: =POWER(10, (Hydrogeology_Log_Hydraulic_Conductivity)) -> 1 | F19: 1 | G19: 1 | H19: 1 | I19: 1 | J19: 1 | K19: 1 | L19: 1 | M19: 1 | N19: 1 | O19: 1 | P19: 1 | Q19: 1 | R19: 1
A20: Distribution | C20: constant | D20: constant | E20: constant | F20: constant | G20: constant | H20: constant | I20: constant | J20: constant | K20: constant | L20: constant | M20: constant | N20: constant | O20: constant | P20: constant | Q20: constant | R20: constant
A21: Hydrogeology_Hydraulic_Conductivity_param1
A22: Hydrogeology_Hydraulic_Conductivity_param2
A23: Hydrogeology_Hydraulic_Conductivity_param3
A26: Hydrogeology_Head | B26: m
A27: Distribution | C27: constant | D27: constant | E27: constant | F27: constant | G27: constant | H27: constant | I27: constant | J27: constant | K27: constant | L27: constant | M27: constant | N27: constant | O27: constant | P27: constant | Q27: constant | R27: constant
A28: Hydrogeology_Head_param1
A29: Hydrogeology_Head_param2
A30: Hydrogeology_Head_param3
A33: Hydrogeology_Hydraulic_Gradient | B33: [-] | C33: =AL_i -> 0.01902040816 | D33: =BGF_hydraulic_gradient -> 0.003
A34: Distribution | C34: constant | D34: constant | E34: constant | F34: constant | G34: constant | H34: constant | I34: constant | J34: constant | K34: constant | L34: constant | M34: constant | N34: constant | O34: constant | P34: constant | Q34: constant | R34: constant
A35: Hydrogeology_Hydraulic_Gradient_param1
A36: Hydrogeology_Hydraulic_Gradient_param2
A37: Hydrogeology_Hydraulic_Gradient_param3
A40: Hydrogeology_Porosity | B40: [-] | C40: =AL_porosity -> 0.05 | D40: =BGF_porosity -> 0.2
A41: Distribution | C41: constant | D41: constant | E41: constant | F41: constant | G41: constant | H41: constant | I41: constant | J41: constant | K41: constant | L41: constant | M41: constant | N41: constant | O41: constant | P41: constant | Q41: constant | R41: constant
A42: Hydrogeology_Porosity_param1
A43: Hydrogeology_Porosity_param2
A44: Hydrogeology_Porosity_param3
A47: Hydrogeology_Velocity | B47: m/s | C47: =(Hydrogeology_Hydraulic_Conductivity) * (Hydrogeology_Hydraulic_Gradient) / (Hydrogeology_Porosity) -> 3.804081633e-08 | D47: =(Hydrogeology_Hydraulic_Conductivity) * (Hydrogeology_Hydraulic_Gradient) / (Hydrogeology_Porosity) -> 2.118e-05 | E47: =(Hydrogeology_Hydraulic_Conductivity) * (Hydrogeology_Hydraulic_Gradient) / (Hydrogeology_Porosity) -> 
A48: Distribution | C48: constant | D48: constant | E48: constant | F48: constant | G48: constant | H48: constant | I48: constant | J48: constant | K48: constant | L48: constant | M48: constant | N48: constant | O48: constant | P48: constant | Q48: constant | R48: constant
A49: Hydrogeology_Velocity_param1
A50: Hydrogeology_Velocity_param2
A51: Hydrogeology_Velocity_param3
A54: Hydrogeology_Tortuosity | B54: [-] | C54: =Tortuosity -> 5 | D54: =Tortuosity -> 5
A55: Distribution | C55: constant | D55: constant | E55: constant | F55: constant | G55: constant | H55: constant | I55: constant | J55: constant | K55: constant | L55: constant | M55: constant | N55: constant | O55: constant | P55: constant | Q55: constant | R55: constant
A56: Hydrogeology_Tortuosity_param1
A57: Hydrogeology_Tortuosity_param2
A58: Hydrogeology_Tortuosity_param3

Sheet Attenuation
A1: ATTENUATION PARAMETERS
A3: Hydrogeological Units | C3: Attenuation Lay | D3: Beenham Grange
A5: General properties
A7: Attenuation_Dry_bulk_density | B7: kg/m3 | C7: =Attenuation_Layer_Bulk_Density -> 2000 | D7: =Beenham_Grange_Formation_Bulk_Density -> 1600
A8: Distribution | C8: constant | D8: constant | E8: constant | F8: constant | G8: constant | H8: constant | I8: constant | J8: constant | K8: constant | L8: constant | M8: constant | N8: constant | O8: constant | P8: constant | Q8: constant | R8: constant
A9: Attenuation_Dry_bulk_density_param1
A10: Attenuation_Dry_bulk_density_param2
A11: Attenuation_Dry_bulk_density_param3
A14: Attenuation_Fraction_organic_carbon | B14: [-]
A15: Distribution | C15: constant | D15: constant | E15: constant | F15: constant | G15: constant | H15: constant | I15: constant | J15: constant | K15: constant | L15: constant | M15: constant | N15: constant | O15: constant | P15: constant | Q15: constant | R15: constant
A16: Attenuation_Fraction_organic_carbon_param1
A17: Attenuation_Fraction_organic_carbon_param2
A18: Attenuation_Fraction_organic_carbon_param3
A22: Contaminant specific parameters
A24: =IF((Contaminants_Source_determinand_names Contaminants_Species1)=0,"Undefined",(Contaminants_Source_determinand_names Contaminants_Species1)) -> Molybdenum
A26: Attenuation_Partition_Coefficient_Kd_Species_1 | B26: L/kg | C26: =AL_Kd_Mo -> 110 | D26: =AL_Kd_Mo -> 110 | E26: =(Attenuation_Fraction_organic_carbon) * (Contaminants_Organic_Carbon_Water_Partition_Coefficient_Koc Contaminants_Species1) -> 0 | F26: =(Attenuation_Fraction_organic_carbon) * (Contaminants_Organic_Carbon_Water_Partition_Coefficient_Koc Contaminants_Species1) -> 0 | G26: =(Attenuation_Fraction_organic_carbon) * (Contaminants_Organic_Carbon_Water_Partition_Coefficient_Koc Contaminants_Species1) -> 0 | H26: =(Attenuation_Fraction_organic_carbon) * (Contaminants_Organic_Carbon_Water_Partition_Coefficient_Koc Contaminants_Species1) -> 0 | I26: =(Attenuation_Fraction_organic_carbon) * (Contaminants_Organic_Carbon_Water_Partition_Coefficient_Koc Contaminants_Species1) -> 0 | J26: =(Attenuation_Fraction_organic_carbon) * (Contaminants_Organic_Carbon_Water_Partition_Coefficient_Koc Contaminants_Species1) -> 0 | K26: =(Attenuation_Fraction_organic_carbon) * (Contaminants_Organic_Carbon_Water_Partition_Coefficient_Koc Contaminants_Species1) -> 0 | L26: =(Attenuation_Fraction_organic_carbon) * (Contaminants_Organic_Carbon_Water_Partition_Coefficient_Koc Contaminants_Species1) -> 0 | M26: =(Attenuation_Fraction_organic_carbon) * (Contaminants_Organic_Carbon_Water_Partition_Coefficient_Koc Contaminants_Species1) -> 0 | N26: =(Attenuation_Fraction_organic_carbon) * (Contaminants_Organic_Carbon_Water_Partition_Coefficient_Koc Contaminants_Species1) -> 0 | O26: =(Attenuation_Fraction_organic_carbon) * (Contaminants_Organic_Carbon_Water_Partition_Coefficient_Koc Contaminants_Species1) -> 0 | P26: =(Attenuation_Fraction_organic_carbon) * (Contaminants_Organic_Carbon_Water_Partition_Coefficient_Koc Contaminants_Species1) -> 0 | Q26: =(Attenuation_Fraction_organic_carbon) * (Contaminants_Organic_Carbon_Water_Partition_Coefficient_Koc Contaminants_Species1) -> 0 | R26: =(Attenuation_Fraction_organic_carbon) * (Contaminants_Organic_Carbon_Water_Partition_Coefficient_Koc Contaminants_Species1) -> 0
A27: Distribution | C27: constant | D27: constant | E27: constant | F27: constant | G27: constant | H27: constant | I27: constant | J27: constant | K27: constant | L27: constant | M27: constant | N27: constant | O27: constant | P27: constant | Q27: constant | R27: constant
A28: Attenuation_Partition_Coefficient_Kd_Species_1_param1
A29: Attenuation_Partition_Coefficient_Kd_Species_1_param2
A30: Attenuation_Partition_Coefficient_Kd_Species_1_param3
A33: Attenuation_Retardation_Species_1 | B33: [-] | C33: =1 + 0.001 * (Attenuation_Partition_Coefficient_Kd_Species_1) * (Attenuation_Dry_bulk_density) / (Hydrogeology_Porosity Hydrogeology!$C:$C) -> 4401 | D33: =1 + 0.001 * (Attenuation_Partition_Coefficient_Kd_Species_1) * (Attenuation_Dry_bulk_density) / (Hydrogeology_Porosity Hydrogeology!$D:$D) -> 881 | E33: =1 + 0.001 * (Attenuation_Partition_Coefficient_Kd_Species_1) * (Attenuation_Dry_bulk_density) / (Hydrogeology_Porosity Hydrogeology!$E:$E) ->  | F33: =1 + 0.001 * (Attenuation_Partition_Coefficient_Kd_Species_1) * (Attenuation_Dry_bulk_density) / (Hydrogeology_Porosity Hydrogeology!$F:$F) ->  | G33: =1 + 0.001 * (Attenuation_Partition_Coefficient_Kd_Species_1) * (Attenuation_Dry_bulk_density) / (Hydrogeology_Porosity Hydrogeology!$G:$G) ->  | H33: =1 + 0.001 * (Attenuation_Partition_Coefficient_Kd_Species_1) * (Attenuation_Dry_bulk_density) / (Hydrogeology_Porosity Hydrogeology!$H:$H) ->  | I33: =1 + 0.001 * (Attenuation_Partition_Coefficient_Kd_Species_1) * (Attenuation_Dry_bulk_density) / (Hydrogeology_Porosity Hydrogeology!$I:$I) ->  | J33: =1 + 0.001 * (Attenuation_Partition_Coefficient_Kd_Species_1) * (Attenuation_Dry_bulk_density) / (Hydrogeology_Porosity Hydrogeology!$J:$J) ->  | K33: =1 + 0.001 * (Attenuation_Partition_Coefficient_Kd_Species_1) * (Attenuation_Dry_bulk_density) / (Hydrogeology_Porosity Hydrogeology!$K:$K) ->  | L33: =1 + 0.001 * (Attenuation_Partition_Coefficient_Kd_Species_1) * (Attenuation_Dry_bulk_density) / (Hydrogeology_Porosity Hydrogeology!$L:$L) ->  | M33: =1 + 0.001 * (Attenuation_Partition_Coefficient_Kd_Species_1) * (Attenuation_Dry_bulk_density) / (Hydrogeology_Porosity Hydrogeology!$M:$M) ->  | N33: =1 + 0.001 * (Attenuation_Partition_Coefficient_Kd_Species_1) * (Attenuation_Dry_bulk_density) / (Hydrogeology_Porosity Hydrogeology!$N:$N) ->  | O33: =1 + 0.001 * (Attenuation_Partition_Coefficient_Kd_Species_1) * (Attenuation_Dry_bulk_density) / (Hydrogeology_Porosity Hydrogeology!$O:$O) ->  | P33: =1 + 0.001 * (Attenuation_Partition_Coefficient_Kd_Species_1) * (Attenuation_Dry_bulk_density) / (Hydrogeology_Porosity Hydrogeology!$P:$P) ->  | Q33: =1 + 0.001 * (Attenuation_Partition_Coefficient_Kd_Species_1) * (Attenuation_Dry_bulk_density) / (Hydrogeology_Porosity Hydrogeology!$Q:$Q) ->  | R33: =1 + 0.001 * (Attenuation_Partition_Coefficient_Kd_Species_1) * (Attenuation_Dry_bulk_density) / (Hydrogeology_Porosity Hydrogeology!$R:$R) -> 
A34: Distribution | C34: constant | D34: constant | E34: constant | F34: constant | G34: constant | H34: constant | I34: constant | J34: constant | K34: constant | L34: constant | M34: constant | N34: constant | O34: constant | P34: constant | Q34: constant | R34: constant
A35: Attenuation_Retardation_Species_1_param1
A36: Attenuation_Retardation_Species_1_param2
A37: Attenuation_Retardation_Species_1_param3
A40: Attenuation_Half_Life_Species_1 | B40: days | C40: No Decay | D40: No Decay | E40: No Decay | F40: No Decay | G40: No Decay | H40: No Decay | I40: No Decay | J40: No Decay | K40: No Decay | L40: No Decay | M40: No Decay | N40: No Decay | O40: No Decay | P40: No Decay | Q40: No Decay | R40: No Decay
A41: Distribution | C41: constant | D41: constant | E41: constant | F41: constant | G41: constant | H41: constant | I41: constant | J41: constant | K41: constant | L41: constant | M41: constant | N41: constant | O41: constant | P41: constant | Q41: constant | R41: constant
A42: Attenuation_Half_Life_Species_1_param1
A43: Attenuation_Half_Life_Species_1_param2
A44: Attenuation_Half_Life_Species_1_param3
A47: Attenuation_Decay_Coefficient_Species_1 | B47: 1/s | C47: =IF((_xlfn.SINGLE(Attenuation_Half_Life_Species_1))<>"No Decay", LN(2) / ((_xlfn.SINGLE(Attenuation_Half_Life_Species_1)) *_xlfn.SINGLE( s_per_day)),0) -> 0 | D47: 0 | E47: 0 | F47: 0 | G47: 0 | H47: 0 | I47: 0 | J47: 0 | K47: 0 | L47: 0 | M47: 0 | N47: 0 | O47: 0 | P47: 0 | Q47: 0 | R47: 0
A48: Distribution | C48: constant | D48: constant | E48: constant | F48: constant | G48: constant | H48: constant | I48: constant | J48: constant | K48: constant | L48: constant | M48: constant | N48: constant | O48: constant | P48: constant | Q48: constant | R48: constant
A49: Attenuation_Decay_Coefficient_Species_1_param1
A50: Attenuation_Decay_Coefficient_Species_1_param2
A51: Attenuation_Decay_Coefficient_Species_1_param3
A54: =IF((Contaminants_Source_determinand_names Contaminants_Species2)=0,"Undefined",(Contaminants_Source_determinand_names Contaminants_Species2)) -> Lead
A56: Attenuation_Partition_Coefficient_Kd_Species_2 | B56: L/kg | C56: =AL_Kd_Pb -> 434.6 | D56: =BGF_Kd_Pb -> 270 | E56: =(Attenuation_Fraction_organic_carbon) * (Contaminants_Organic_Carbon_Water_Partition_Coefficient_Koc Contaminants_Species2) -> 0 | F56: =(Attenuation_Fraction_organic_carbon) * (Contaminants_Organic_Carbon_Water_Partition_Coefficient_Koc Contaminants_Species2) -> 0 | G56: =(Attenuation_Fraction_organic_carbon) * (Contaminants_Organic_Carbon_Water_Partition_Coefficient_Koc Contaminants_Species2) -> 0 | H56: =(Attenuation_Fraction_organic_carbon) * (Contaminants_Organic_Carbon_Water_Partition_Coefficient_Koc Contaminants_Species2) -> 0 | I56: =(Attenuation_Fraction_organic_carbon) * (Contaminants_Organic_Carbon_Water_Partition_Coefficient_Koc Contaminants_Species2) -> 0 | J56: =(Attenuation_Fraction_organic_carbon) * (Contaminants_Organic_Carbon_Water_Partition_Coefficient_Koc Contaminants_Species2) -> 0 | K56: =(Attenuation_Fraction_organic_carbon) * (Contaminants_Organic_Carbon_Water_Partition_Coefficient_Koc Contaminants_Species2) -> 0 | L56: =(Attenuation_Fraction_organic_carbon) * (Contaminants_Organic_Carbon_Water_Partition_Coefficient_Koc Contaminants_Species2) -> 0 | M56: =(Attenuation_Fraction_organic_carbon) * (Contaminants_Organic_Carbon_Water_Partition_Coefficient_Koc Contaminants_Species2) -> 0 | N56: =(Attenuation_Fraction_organic_carbon) * (Contaminants_Organic_Carbon_Water_Partition_Coefficient_Koc Contaminants_Species2) -> 0 | O56: =(Attenuation_Fraction_organic_carbon) * (Contaminants_Organic_Carbon_Water_Partition_Coefficient_Koc Contaminants_Species2) -> 0 | P56: =(Attenuation_Fraction_organic_carbon) * (Contaminants_Organic_Carbon_Water_Partition_Coefficient_Koc Contaminants_Species2) -> 0 | Q56: =(Attenuation_Fraction_organic_carbon) * (Contaminants_Organic_Carbon_Water_Partition_Coefficient_Koc Contaminants_Species2) -> 0 | R56: =(Attenuation_Fraction_organic_carbon) * (Contaminants_Organic_Carbon_Water_Partition_Coefficient_Koc Contaminants_Species2) -> 0
A57: Distribution | C57: constant | D57: constant | E57: constant | F57: constant | G57: constant | H57: constant | I57: constant | J57: constant | K57: constant | L57: constant | M57: constant | N57: constant | O57: constant | P57: constant | Q57: constant | R57: constant
A58: Attenuation_Partition_Coefficient_Kd_Species_2_param1
A59: Attenuation_Partition_Coefficient_Kd_Species_2_param2
A60: Attenuation_Partition_Coefficient_Kd_Species_2_param3
A63: Attenuation_Retardation_Species_2 | B63: [-] | C63: =1 + 0.001 * (Attenuation_Partition_Coefficient_Kd_Species_2) * (Attenuation_Dry_bulk_density) / (Hydrogeology_Porosity Hydrogeology!$C:$C) -> 17385 | D63: =1 + 0.001 * (Attenuation_Partition_Coefficient_Kd_Species_2) * (Attenuation_Dry_bulk_density) / (Hydrogeology_Porosity Hydrogeology!$D:$D) -> 2161 | E63: =1 + 0.001 * (Attenuation_Partition_Coefficient_Kd_Species_2) * (Attenuation_Dry_bulk_density) / (Hydrogeology_Porosity Hydrogeology!$E:$E) ->  | F63: =1 + 0.001 * (Attenuation_Partition_Coefficient_Kd_Species_2) * (Attenuation_Dry_bulk_density) / (Hydrogeology_Porosity Hydrogeology!$F:$F) ->  | G63: =1 + 0.001 * (Attenuation_Partition_Coefficient_Kd_Species_2) * (Attenuation_Dry_bulk_density) / (Hydrogeology_Porosity Hydrogeology!$G:$G) ->  | H63: =1 + 0.001 * (Attenuation_Partition_Coefficient_Kd_Species_2) * (Attenuation_Dry_bulk_density) / (Hydrogeology_Porosity Hydrogeology!$H:$H) ->  | I63: =1 + 0.001 * (Attenuation_Partition_Coefficient_Kd_Species_2) * (Attenuation_Dry_bulk_density) / (Hydrogeology_Porosity Hydrogeology!$I:$I) ->  | J63: =1 + 0.001 * (Attenuation_Partition_Coefficient_Kd_Species_2) * (Attenuation_Dry_bulk_density) / (Hydrogeology_Porosity Hydrogeology!$J:$J) ->  | K63: =1 + 0.001 * (Attenuation_Partition_Coefficient_Kd_Species_2) * (Attenuation_Dry_bulk_density) / (Hydrogeology_Porosity Hydrogeology!$K:$K) ->  | L63: =1 + 0.001 * (Attenuation_Partition_Coefficient_Kd_Species_2) * (Attenuation_Dry_bulk_density) / (Hydrogeology_Porosity Hydrogeology!$L:$L) ->  | M63: =1 + 0.001 * (Attenuation_Partition_Coefficient_Kd_Species_2) * (Attenuation_Dry_bulk_density) / (Hydrogeology_Porosity Hydrogeology!$M:$M) ->  | N63: =1 + 0.001 * (Attenuation_Partition_Coefficient_Kd_Species_2) * (Attenuation_Dry_bulk_density) / (Hydrogeology_Porosity Hydrogeology!$N:$N) ->  | O63: =1 + 0.001 * (Attenuation_Partition_Coefficient_Kd_Species_2) * (Attenuation_Dry_bulk_density) / (Hydrogeology_Porosity Hydrogeology!$O:$O) ->  | P63: =1 + 0.001 * (Attenuation_Partition_Coefficient_Kd_Species_2) * (Attenuation_Dry_bulk_density) / (Hydrogeology_Porosity Hydrogeology!$P:$P) ->  | Q63: =1 + 0.001 * (Attenuation_Partition_Coefficient_Kd_Species_2) * (Attenuation_Dry_bulk_density) / (Hydrogeology_Porosity Hydrogeology!$Q:$Q) ->  | R63: =1 + 0.001 * (Attenuation_Partition_Coefficient_Kd_Species_2) * (Attenuation_Dry_bulk_density) / (Hydrogeology_Porosity Hydrogeology!$R:$R) -> 
A64: Distribution | C64: constant | D64: constant | E64: constant | F64: constant | G64: constant | H64: constant | I64: constant | J64: constant | K64: constant | L64: constant | M64: constant | N64: constant | O64: constant | P64: constant | Q64: constant | R64: constant
A65: Attenuation_Retardation_Species_2_param1
A66: Attenuation_Retardation_Species_2_param2
A67: Attenuation_Retardation_Species_2_param3
A70: Attenuation_Half_Life_Species_2 | B70: days | C70: No Decay | D70: No Decay | E70: No Decay | F70: No Decay | G70: No Decay | H70: No Decay | I70: No Decay | J70: No Decay | K70: No Decay | L70: No Decay | M70: No Decay | N70: No Decay | O70: No Decay | P70: No Decay | Q70: No Decay | R70: No Decay
A71: Distribution | C71: constant | D71: constant | E71: constant | F71: constant | G71: constant | H71: constant | I71: constant | J71: constant | K71: constant | L71: constant | M71: constant | N71: constant | O71: constant | P71: constant | Q71: constant | R71: constant
A72: Attenuation_Half_Life_Species_2_param1
A73: Attenuation_Half_Life_Species_2_param2
A74: Attenuation_Half_Life_Species_2_param3
A77: Attenuation_Decay_Coefficient_Species_2 | B77: 1/s | C77: =IF((_xlfn.SINGLE(Attenuation_Half_Life_Species_2))<>"No Decay", LN(2) / ((_xlfn.SINGLE(Attenuation_Half_Life_Species_2)) *_xlfn.SINGLE( s_per_day)),0) -> 0 | D77: 0 | E77: 0 | F77: 0 | G77: 0 | H77: 0 | I77: 0 | J77: 0 | K77: 0 | L77: 0 | M77: 0 | N77: 0 | O77: 0 | P77: 0 | Q77: 0 | R77: 0
A78: Distribution | C78: constant | D78: constant | E78: constant | F78: constant | G78: constant | H78: constant | I78: constant | J78: constant | K78: constant | L78: constant | M78: constant | N78: constant | O78: constant | P78: constant | Q78: constant | R78: constant
A79: Attenuation_Decay_Coefficient_Species_2_param1
A80: Attenuation_Decay_Coefficient_Species_2_param2
A81: Attenuation_Decay_Coefficient_Species_2_param3
A84: =IF((Contaminants_Source_determinand_names Contaminants_Species3)=0,"Undefined",(Contaminants_Source_determinand_names Contaminants_Species3)) -> Copper
A86: Attenuation_Partition_Coefficient_Kd_Species_3 | B86: L/kg | C86: =AL_Kd_Cu -> 126.8 | D86: =BGF_Kd_Cu -> 295 | E86: =(Attenuation_Fraction_organic_carbon) * (Contaminants_Organic_Carbon_Water_Partition_Coefficient_Koc Contaminants_Species3) -> 0 | F86: =(Attenuation_Fraction_organic_carbon) * (Contaminants_Organic_Carbon_Water_Partition_Coefficient_Koc Contaminants_Species3) -> 0 | G86: =(Attenuation_Fraction_organic_carbon) * (Contaminants_Organic_Carbon_Water_Partition_Coefficient_Koc Contaminants_Species3) -> 0 | H86: =(Attenuation_Fraction_organic_carbon) * (Contaminants_Organic_Carbon_Water_Partition_Coefficient_Koc Contaminants_Species3) -> 0 | I86: =(Attenuation_Fraction_organic_carbon) * (Contaminants_Organic_Carbon_Water_Partition_Coefficient_Koc Contaminants_Species3) -> 0 | J86: =(Attenuation_Fraction_organic_carbon) * (Contaminants_Organic_Carbon_Water_Partition_Coefficient_Koc Contaminants_Species3) -> 0 | K86: =(Attenuation_Fraction_organic_carbon) * (Contaminants_Organic_Carbon_Water_Partition_Coefficient_Koc Contaminants_Species3) -> 0 | L86: =(Attenuation_Fraction_organic_carbon) * (Contaminants_Organic_Carbon_Water_Partition_Coefficient_Koc Contaminants_Species3) -> 0 | M86: =(Attenuation_Fraction_organic_carbon) * (Contaminants_Organic_Carbon_Water_Partition_Coefficient_Koc Contaminants_Species3) -> 0 | N86: =(Attenuation_Fraction_organic_carbon) * (Contaminants_Organic_Carbon_Water_Partition_Coefficient_Koc Contaminants_Species3) -> 0 | O86: =(Attenuation_Fraction_organic_carbon) * (Contaminants_Organic_Carbon_Water_Partition_Coefficient_Koc Contaminants_Species3) -> 0 | P86: =(Attenuation_Fraction_organic_carbon) * (Contaminants_Organic_Carbon_Water_Partition_Coefficient_Koc Contaminants_Species3) -> 0 | Q86: =(Attenuation_Fraction_organic_carbon) * (Contaminants_Organic_Carbon_Water_Partition_Coefficient_Koc Contaminants_Species3) -> 0 | R86: =(Attenuation_Fraction_organic_carbon) * (Contaminants_Organic_Carbon_Water_Partition_Coefficient_Koc Contaminants_Species3) -> 0
A87: Distribution | C87: constant | D87: constant | E87: constant | F87: constant | G87: constant | H87: constant | I87: constant | J87: constant | K87: constant | L87: constant | M87: constant | N87: constant | O87: constant | P87: constant | Q87: constant | R87: constant
A88: Attenuation_Partition_Coefficient_Kd_Species_3_param1
A89: Attenuation_Partition_Coefficient_Kd_Species_3_param2
A90: Attenuation_Partition_Coefficient_Kd_Species_3_param3
A93: Attenuation_Retardation_Species_3 | B93: [-] | C93: =1 + 0.001 * (Attenuation_Partition_Coefficient_Kd_Species_3) * (Attenuation_Dry_bulk_density) / (Hydrogeology_Porosity Hydrogeology!$C:$C) -> 5073 | D93: =1 + 0.001 * (Attenuation_Partition_Coefficient_Kd_Species_3) * (Attenuation_Dry_bulk_density) / (Hydrogeology_Porosity Hydrogeology!$D:$D) -> 2361 | E93: =1 + 0.001 * (Attenuation_Partition_Coefficient_Kd_Species_3) * (Attenuation_Dry_bulk_density) / (Hydrogeology_Porosity Hydrogeology!$E:$E) ->  | F93: =1 + 0.001 * (Attenuation_Partition_Coefficient_Kd_Species_3) * (Attenuation_Dry_bulk_density) / (Hydrogeology_Porosity Hydrogeology!$F:$F) ->  | G93: =1 + 0.001 * (Attenuation_Partition_Coefficient_Kd_Species_3) * (Attenuation_Dry_bulk_density) / (Hydrogeology_Porosity Hydrogeology!$G:$G) ->  | H93: =1 + 0.001 * (Attenuation_Partition_Coefficient_Kd_Species_3) * (Attenuation_Dry_bulk_density) / (Hydrogeology_Porosity Hydrogeology!$H:$H) ->  | I93: =1 + 0.001 * (Attenuation_Partition_Coefficient_Kd_Species_3) * (Attenuation_Dry_bulk_density) / (Hydrogeology_Porosity Hydrogeology!$I:$I) ->  | J93: =1 + 0.001 * (Attenuation_Partition_Coefficient_Kd_Species_3) * (Attenuation_Dry_bulk_density) / (Hydrogeology_Porosity Hydrogeology!$J:$J) ->  | K93: =1 + 0.001 * (Attenuation_Partition_Coefficient_Kd_Species_3) * (Attenuation_Dry_bulk_density) / (Hydrogeology_Porosity Hydrogeology!$K:$K) ->  | L93: =1 + 0.001 * (Attenuation_Partition_Coefficient_Kd_Species_3) * (Attenuation_Dry_bulk_density) / (Hydrogeology_Porosity Hydrogeology!$L:$L) ->  | M93: =1 + 0.001 * (Attenuation_Partition_Coefficient_Kd_Species_3) * (Attenuation_Dry_bulk_density) / (Hydrogeology_Porosity Hydrogeology!$M:$M) ->  | N93: =1 + 0.001 * (Attenuation_Partition_Coefficient_Kd_Species_3) * (Attenuation_Dry_bulk_density) / (Hydrogeology_Porosity Hydrogeology!$N:$N) ->  | O93: =1 + 0.001 * (Attenuation_Partition_Coefficient_Kd_Species_3) * (Attenuation_Dry_bulk_density) / (Hydrogeology_Porosity Hydrogeology!$O:$O) ->  | P93: =1 + 0.001 * (Attenuation_Partition_Coefficient_Kd_Species_3) * (Attenuation_Dry_bulk_density) / (Hydrogeology_Porosity Hydrogeology!$P:$P) ->  | Q93: =1 + 0.001 * (Attenuation_Partition_Coefficient_Kd_Species_3) * (Attenuation_Dry_bulk_density) / (Hydrogeology_Porosity Hydrogeology!$Q:$Q) ->  | R93: =1 + 0.001 * (Attenuation_Partition_Coefficient_Kd_Species_3) * (Attenuation_Dry_bulk_density) / (Hydrogeology_Porosity Hydrogeology!$R:$R) -> 
A94: Distribution | C94: constant | D94: constant | E94: constant | F94: constant | G94: constant | H94: constant | I94: constant | J94: constant | K94: constant | L94: constant | M94: constant | N94: constant | O94: constant | P94: constant | Q94: constant | R94: constant
A95: Attenuation_Retardation_Species_3_param1
A96: Attenuation_Retardation_Species_3_param2
A97: Attenuation_Retardation_Species_3_param3
A100: Attenuation_Half_Life_Species_3 | B100: days | C100: No Decay | D100: No Decay | E100: No Decay | F100: No Decay | G100: No Decay | H100: No Decay | I100: No Decay | J100: No Decay | K100: No Decay | L100: No Decay | M100: No Decay | N100: No Decay | O100: No Decay | P100: No Decay | Q100: No Decay | R100: No Decay
A101: Distribution | C101: constant | D101: constant | E101: constant | F101: constant | G101: constant | H101: constant | I101: constant | J101: constant | K101: constant | L101: constant | M101: constant | N101: constant | O101: constant | P101: constant | Q101: constant | R101: constant
A102: Attenuation_Half_Life_Species_3_param1
A103: Attenuation_Half_Life_Species_3_param2
A104: Attenuation_Half_Life_Species_3_param3
A107: Attenuation_Decay_Coefficient_Species_3 | B107: 1/s | C107: =IF((_xlfn.SINGLE(Attenuation_Half_Life_Species_3))<>"No Decay", LN(2) / ((_xlfn.SINGLE(Attenuation_Half_Life_Species_3)) *_xlfn.SINGLE( s_per_day)),0) -> 0 | D107: 0 | E107: 0 | F107: 0 | G107: 0 | H107: 0 | I107: 0 | J107: 0 | K107: 0 | L107: 0 | M107: 0 | N107: 0 | O107: 0 | P107: 0 | Q107: 0 | R107: 0
A108: Distribution | C108: constant | D108: constant | E108: constant | F108: constant | G108: constant | H108: constant | I108: constant | J108: constant | K108: constant | L108: constant | M108: constant | N108: constant | O108: constant | P108: constant | Q108: constant | R108: constant
A109: Attenuation_Decay_Coefficient_Species_3_param1
A110: Attenuation_Decay_Coefficient_Species_3_param2
A111: Attenuation_Decay_Coefficient_Species_3_param3
A114: =IF((Contaminants_Source_determinand_names Contaminants_Species4)=0,"Undefined",(Contaminants_Source_determinand_names Contaminants_Species4)) -> Mercury
A116: Attenuation_Partition_Coefficient_Kd_Species_4 | B116: L/kg | C116: =AL_Kd_Hg -> 2142 | D116: =BGF_Kd_Hg -> 450 | E116: =(Attenuation_Fraction_organic_carbon) * (Contaminants_Organic_Carbon_Water_Partition_Coefficient_Koc Contaminants_Species4) -> 0 | F116: =(Attenuation_Fraction_organic_carbon) * (Contaminants_Organic_Carbon_Water_Partition_Coefficient_Koc Contaminants_Species4) -> 0 | G116: =(Attenuation_Fraction_organic_carbon) * (Contaminants_Organic_Carbon_Water_Partition_Coefficient_Koc Contaminants_Species4) -> 0 | H116: =(Attenuation_Fraction_organic_carbon) * (Contaminants_Organic_Carbon_Water_Partition_Coefficient_Koc Contaminants_Species4) -> 0 | I116: =(Attenuation_Fraction_organic_carbon) * (Contaminants_Organic_Carbon_Water_Partition_Coefficient_Koc Contaminants_Species4) -> 0 | J116: =(Attenuation_Fraction_organic_carbon) * (Contaminants_Organic_Carbon_Water_Partition_Coefficient_Koc Contaminants_Species4) -> 0 | K116: =(Attenuation_Fraction_organic_carbon) * (Contaminants_Organic_Carbon_Water_Partition_Coefficient_Koc Contaminants_Species4) -> 0 | L116: =(Attenuation_Fraction_organic_carbon) * (Contaminants_Organic_Carbon_Water_Partition_Coefficient_Koc Contaminants_Species4) -> 0 | M116: =(Attenuation_Fraction_organic_carbon) * (Contaminants_Organic_Carbon_Water_Partition_Coefficient_Koc Contaminants_Species4) -> 0 | N116: =(Attenuation_Fraction_organic_carbon) * (Contaminants_Organic_Carbon_Water_Partition_Coefficient_Koc Contaminants_Species4) -> 0 | O116: =(Attenuation_Fraction_organic_carbon) * (Contaminants_Organic_Carbon_Water_Partition_Coefficient_Koc Contaminants_Species4) -> 0 | P116: =(Attenuation_Fraction_organic_carbon) * (Contaminants_Organic_Carbon_Water_Partition_Coefficient_Koc Contaminants_Species4) -> 0 | Q116: =(Attenuation_Fraction_organic_carbon) * (Contaminants_Organic_Carbon_Water_Partition_Coefficient_Koc Contaminants_Species4) -> 0 | R116: =(Attenuation_Fraction_organic_carbon) * (Contaminants_Organic_Carbon_Water_Partition_Coefficient_Koc Contaminants_Species4) -> 0
A117: Distribution | C117: constant | D117: constant | E117: constant | F117: constant | G117: constant | H117: constant | I117: constant | J117: constant | K117: constant | L117: constant | M117: constant | N117: constant | O117: constant | P117: constant | Q117: constant | R117: constant
A118: Attenuation_Partition_Coefficient_Kd_Species_4_param1
A119: Attenuation_Partition_Coefficient_Kd_Species_4_param2
A120: Attenuation_Partition_Coefficient_Kd_Species_4_param3
A123: Attenuation_Retardation_Species_4 | B123: [-] | C123: =1 + 0.001 * (Attenuation_Partition_Coefficient_Kd_Species_4) * (Attenuation_Dry_bulk_density) / (Hydrogeology_Porosity Hydrogeology!$C:$C) -> 85681 | D123: =1 + 0.001 * (Attenuation_Partition_Coefficient_Kd_Species_4) * (Attenuation_Dry_bulk_density) / (Hydrogeology_Porosity Hydrogeology!$D:$D) -> 3601 | E123: =1 + 0.001 * (Attenuation_Partition_Coefficient_Kd_Species_4) * (Attenuation_Dry_bulk_density) / (Hydrogeology_Porosity Hydrogeology!$E:$E) ->  | F123: =1 + 0.001 * (Attenuation_Partition_Coefficient_Kd_Species_4) * (Attenuation_Dry_bulk_density) / (Hydrogeology_Porosity Hydrogeology!$F:$F) ->  | G123: =1 + 0.001 * (Attenuation_Partition_Coefficient_Kd_Species_4) * (Attenuation_Dry_bulk_density) / (Hydrogeology_Porosity Hydrogeology!$G:$G) ->  | H123: =1 + 0.001 * (Attenuation_Partition_Coefficient_Kd_Species_4) * (Attenuation_Dry_bulk_density) / (Hydrogeology_Porosity Hydrogeology!$H:$H) ->  | I123: =1 + 0.001 * (Attenuation_Partition_Coefficient_Kd_Species_4) * (Attenuation_Dry_bulk_density) / (Hydrogeology_Porosity Hydrogeology!$I:$I) ->  | J123: =1 + 0.001 * (Attenuation_Partition_Coefficient_Kd_Species_4) * (Attenuation_Dry_bulk_density) / (Hydrogeology_Porosity Hydrogeology!$J:$J) ->  | K123: =1 + 0.001 * (Attenuation_Partition_Coefficient_Kd_Species_4) * (Attenuation_Dry_bulk_density) / (Hydrogeology_Porosity Hydrogeology!$K:$K) ->  | L123: =1 + 0.001 * (Attenuation_Partition_Coefficient_Kd_Species_4) * (Attenuation_Dry_bulk_density) / (Hydrogeology_Porosity Hydrogeology!$L:$L) ->  | M123: =1 + 0.001 * (Attenuation_Partition_Coefficient_Kd_Species_4) * (Attenuation_Dry_bulk_density) / (Hydrogeology_Porosity Hydrogeology!$M:$M) ->  | N123: =1 + 0.001 * (Attenuation_Partition_Coefficient_Kd_Species_4) * (Attenuation_Dry_bulk_density) / (Hydrogeology_Porosity Hydrogeology!$N:$N) ->  | O123: =1 + 0.001 * (Attenuation_Partition_Coefficient_Kd_Species_4) * (Attenuation_Dry_bulk_density) / (Hydrogeology_Porosity Hydrogeology!$O:$O) ->  | P123: =1 + 0.001 * (Attenuation_Partition_Coefficient_Kd_Species_4) * (Attenuation_Dry_bulk_density) / (Hydrogeology_Porosity Hydrogeology!$P:$P) ->  | Q123: =1 + 0.001 * (Attenuation_Partition_Coefficient_Kd_Species_4) * (Attenuation_Dry_bulk_density) / (Hydrogeology_Porosity Hydrogeology!$Q:$Q) ->  | R123: =1 + 0.001 * (Attenuation_Partition_Coefficient_Kd_Species_4) * (Attenuation_Dry_bulk_density) / (Hydrogeology_Porosity Hydrogeology!$R:$R) -> 
A124: Distribution | C124: constant | D124: constant | E124: constant | F124: constant | G124: constant | H124: constant | I124: constant | J124: constant | K124: constant | L124: constant | M124: constant | N124: constant | O124: constant | P124: constant | Q124: constant | R124: constant
A125: Attenuation_Retardation_Species_4_param1
A126: Attenuation_Retardation_Species_4_param2
A127: Attenuation_Retardation_Species_4_param3
A130: Attenuation_Half_Life_Species_4 | B130: days | C130: No Decay | D130: No Decay | E130: No Decay | F130: No Decay | G130: No Decay | H130: No Decay | I130: No Decay | J130: No Decay | K130: No Decay | L130: No Decay | M130: No Decay | N130: No Decay | O130: No Decay | P130: No Decay | Q130: No Decay | R130: No Decay
A131: Distribution | C131: constant | D131: constant | E131: constant | F131: constant | G131: constant | H131: constant | I131: constant | J131: constant | K131: constant | L131: constant | M131: constant | N131: constant | O131: constant | P131: constant | Q131: constant | R131: constant
A132: Attenuation_Half_Life_Species_4_param1
A133: Attenuation_Half_Life_Species_4_param2
A134: Attenuation_Half_Life_Species_4_param3
A137: Attenuation_Decay_Coefficient_Species_4 | B137: 1/s | C137: =IF((_xlfn.SINGLE(Attenuation_Half_Life_Species_4))<>"No Decay", LN(2) / ((_xlfn.SINGLE(Attenuation_Half_Life_Species_4)) *_xlfn.SINGLE( s_per_day)),0) -> 0 | D137: 0 | E137: 0 | F137: 0 | G137: 0 | H137: 0 | I137: 0 | J137: 0 | K137: 0 | L137: 0 | M137: 0 | N137: 0 | O137: 0 | P137: 0 | Q137: 0 | R137: 0
A138: Distribution | C138: constant | D138: constant | E138: constant | F138: constant | G138: constant | H138: constant | I138: constant | J138: constant | K138: constant | L138: constant | M138: constant | N138: constant | O138: constant | P138: constant | Q138: constant | R138: constant
A139: Attenuation_Decay_Coefficient_Species_4_param1
A140: Attenuation_Decay_Coefficient_Species_4_param2
A141: Attenuation_Decay_Coefficient_Species_4_param3
A144: =IF((Contaminants_Source_determinand_names Contaminants_Species5)=0,"Undefined",(Contaminants_Source_determinand_names Contaminants_Species5)) -> Cadmium
A146: Attenuation_Partition_Coefficient_Kd_Species_5 | B146: L/kg | C146: =AL_Kd_Cd -> 222 | D146: =BGF_Kd_Cd -> 74 | E146: =(Attenuation_Fraction_organic_carbon) * (Contaminants_Organic_Carbon_Water_Partition_Coefficient_Koc Contaminants_Species5) -> 0 | F146: =(Attenuation_Fraction_organic_carbon) * (Contaminants_Organic_Carbon_Water_Partition_Coefficient_Koc Contaminants_Species5) -> 0 | G146: =(Attenuation_Fraction_organic_carbon) * (Contaminants_Organic_Carbon_Water_Partition_Coefficient_Koc Contaminants_Species5) -> 0 | H146: =(Attenuation_Fraction_organic_carbon) * (Contaminants_Organic_Carbon_Water_Partition_Coefficient_Koc Contaminants_Species5) -> 0 | I146: =(Attenuation_Fraction_organic_carbon) * (Contaminants_Organic_Carbon_Water_Partition_Coefficient_Koc Contaminants_Species5) -> 0 | J146: =(Attenuation_Fraction_organic_carbon) * (Contaminants_Organic_Carbon_Water_Partition_Coefficient_Koc Contaminants_Species5) -> 0 | K146: =(Attenuation_Fraction_organic_carbon) * (Contaminants_Organic_Carbon_Water_Partition_Coefficient_Koc Contaminants_Species5) -> 0 | L146: =(Attenuation_Fraction_organic_carbon) * (Contaminants_Organic_Carbon_Water_Partition_Coefficient_Koc Contaminants_Species5) -> 0 | M146: =(Attenuation_Fraction_organic_carbon) * (Contaminants_Organic_Carbon_Water_Partition_Coefficient_Koc Contaminants_Species5) -> 0 | N146: =(Attenuation_Fraction_organic_carbon) * (Contaminants_Organic_Carbon_Water_Partition_Coefficient_Koc Contaminants_Species5) -> 0 | O146: =(Attenuation_Fraction_organic_carbon) * (Contaminants_Organic_Carbon_Water_Partition_Coefficient_Koc Contaminants_Species5) -> 0 | P146: =(Attenuation_Fraction_organic_carbon) * (Contaminants_Organic_Carbon_Water_Partition_Coefficient_Koc Contaminants_Species5) -> 0 | Q146: =(Attenuation_Fraction_organic_carbon) * (Contaminants_Organic_Carbon_Water_Partition_Coefficient_Koc Contaminants_Species5) -> 0 | R146: =(Attenuation_Fraction_organic_carbon) * (Contaminants_Organic_Carbon_Water_Partition_Coefficient_Koc Contaminants_Species5) -> 0
A147: Distribution | C147: constant | D147: constant | E147: constant | F147: constant | G147: constant | H147: constant | I147: constant | J147: constant | K147: constant | L147: constant | M147: constant | N147: constant | O147: constant | P147: constant | Q147: constant | R147: constant
A148: Attenuation_Partition_Coefficient_Kd_Species_5_param1
A149: Attenuation_Partition_Coefficient_Kd_Species_5_param2
A150: Attenuation_Partition_Coefficient_Kd_Species_5_param3
A153: Attenuation_Retardation_Species_5 | B153: [-] | C153: =1 + 0.001 * (Attenuation_Partition_Coefficient_Kd_Species_5) * (Attenuation_Dry_bulk_density) / (Hydrogeology_Porosity Hydrogeology!$C:$C) -> 8881 | D153: =1 + 0.001 * (Attenuation_Partition_Coefficient_Kd_Species_5) * (Attenuation_Dry_bulk_density) / (Hydrogeology_Porosity Hydrogeology!$D:$D) -> 593 | E153: =1 + 0.001 * (Attenuation_Partition_Coefficient_Kd_Species_5) * (Attenuation_Dry_bulk_density) / (Hydrogeology_Porosity Hydrogeology!$E:$E) ->  | F153: =1 + 0.001 * (Attenuation_Partition_Coefficient_Kd_Species_5) * (Attenuation_Dry_bulk_density) / (Hydrogeology_Porosity Hydrogeology!$F:$F) ->  | G153: =1 + 0.001 * (Attenuation_Partition_Coefficient_Kd_Species_5) * (Attenuation_Dry_bulk_density) / (Hydrogeology_Porosity Hydrogeology!$G:$G) ->  | H153: =1 + 0.001 * (Attenuation_Partition_Coefficient_Kd_Species_5) * (Attenuation_Dry_bulk_density) / (Hydrogeology_Porosity Hydrogeology!$H:$H) ->  | I153: =1 + 0.001 * (Attenuation_Partition_Coefficient_Kd_Species_5) * (Attenuation_Dry_bulk_density) / (Hydrogeology_Porosity Hydrogeology!$I:$I) ->  | J153: =1 + 0.001 * (Attenuation_Partition_Coefficient_Kd_Species_5) * (Attenuation_Dry_bulk_density) / (Hydrogeology_Porosity Hydrogeology!$J:$J) ->  | K153: =1 + 0.001 * (Attenuation_Partition_Coefficient_Kd_Species_5) * (Attenuation_Dry_bulk_density) / (Hydrogeology_Porosity Hydrogeology!$K:$K) ->  | L153: =1 + 0.001 * (Attenuation_Partition_Coefficient_Kd_Species_5) * (Attenuation_Dry_bulk_density) / (Hydrogeology_Porosity Hydrogeology!$L:$L) ->  | M153: =1 + 0.001 * (Attenuation_Partition_Coefficient_Kd_Species_5) * (Attenuation_Dry_bulk_density) / (Hydrogeology_Porosity Hydrogeology!$M:$M) ->  | N153: =1 + 0.001 * (Attenuation_Partition_Coefficient_Kd_Species_5) * (Attenuation_Dry_bulk_density) / (Hydrogeology_Porosity Hydrogeology!$N:$N) ->  | O153: =1 + 0.001 * (Attenuation_Partition_Coefficient_Kd_Species_5) * (Attenuation_Dry_bulk_density) / (Hydrogeology_Porosity Hydrogeology!$O:$O) ->  | P153: =1 + 0.001 * (Attenuation_Partition_Coefficient_Kd_Species_5) * (Attenuation_Dry_bulk_density) / (Hydrogeology_Porosity Hydrogeology!$P:$P) ->  | Q153: =1 + 0.001 * (Attenuation_Partition_Coefficient_Kd_Species_5) * (Attenuation_Dry_bulk_density) / (Hydrogeology_Porosity Hydrogeology!$Q:$Q) ->  | R153: =1 + 0.001 * (Attenuation_Partition_Coefficient_Kd_Species_5) * (Attenuation_Dry_bulk_density) / (Hydrogeology_Porosity Hydrogeology!$R:$R) -> 
A154: Distribution | C154: constant | D154: constant | E154: constant | F154: constant | G154: constant | H154: constant | I154: constant | J154: constant | K154: constant | L154: constant | M154: constant | N154: constant | O154: constant | P154: constant | Q154: constant | R154: constant
A155: Attenuation_Retardation_Species_5_param1
A156: Attenuation_Retardation_Species_5_param2
A157: Attenuation_Retardation_Species_5_param3
A160: Attenuation_Half_Life_Species_5 | B160: days | C160: No Decay | D160: No Decay | E160: No Decay | F160: No Decay | G160: No Decay | H160: No Decay | I160: No Decay | J160: No Decay | K160: No Decay | L160: No Decay | M160: No Decay | N160: No Decay | O160: No Decay | P160: No Decay | Q160: No Decay | R160: No Decay
A161: Distribution | C161: constant | D161: constant | E161: constant | F161: constant | G161: constant | H161: constant | I161: constant | J161: constant | K161: constant | L161: constant | M161: constant | N161: constant | O161: constant | P161: constant | Q161: constant | R161: constant
A162: Attenuation_Half_Life_Species_5_param1
A163: Attenuation_Half_Life_Species_5_param2
A164: Attenuation_Half_Life_Species_5_param3
A167: Attenuation_Decay_Coefficient_Species_5 | B167: 1/s | C167: =IF((_xlfn.SINGLE(Attenuation_Half_Life_Species_5))<>"No Decay", LN(2) / ((_xlfn.SINGLE(Attenuation_Half_Life_Species_5)) *_xlfn.SINGLE( s_per_day)),0) -> 0 | D167: 0 | E167: 0 | F167: 0 | G167: 0 | H167: 0 | I167: 0 | J167: 0 | K167: 0 | L167: 0 | M167: 0 | N167: 0 | O167: 0 | P167: 0 | Q167: 0 | R167: 0
A168: Distribution | C168: constant | D168: constant | E168: constant | F168: constant | G168: constant | H168: constant | I168: constant | J168: constant | K168: constant | L168: constant | M168: constant | N168: constant | O168: constant | P168: constant | Q168: constant | R168: constant
A169: Attenuation_Decay_Coefficient_Species_5_param1
A170: Attenuation_Decay_Coefficient_Species_5_param2
A171: Attenuation_Decay_Coefficient_Species_5_param3
A174: =IF((Contaminants_Source_determinand_names Contaminants_Species6)=0,"Undefined",(Contaminants_Source_determinand_names Contaminants_Species6)) -> Chromium
A176: Attenuation_Partition_Coefficient_Kd_Species_6 | B176: L/kg | C176: =AL_Kd_Cr -> 966 | D176: =BGF_Kd_Cr -> 67 | E176: =(Attenuation_Fraction_organic_carbon) * (Contaminants_Organic_Carbon_Water_Partition_Coefficient_Koc Contaminants_Species6) -> 0 | F176: =(Attenuation_Fraction_organic_carbon) * (Contaminants_Organic_Carbon_Water_Partition_Coefficient_Koc Contaminants_Species6) -> 0 | G176: =(Attenuation_Fraction_organic_carbon) * (Contaminants_Organic_Carbon_Water_Partition_Coefficient_Koc Contaminants_Species6) -> 0 | H176: =(Attenuation_Fraction_organic_carbon) * (Contaminants_Organic_Carbon_Water_Partition_Coefficient_Koc Contaminants_Species6) -> 0 | I176: =(Attenuation_Fraction_organic_carbon) * (Contaminants_Organic_Carbon_Water_Partition_Coefficient_Koc Contaminants_Species6) -> 0 | J176: =(Attenuation_Fraction_organic_carbon) * (Contaminants_Organic_Carbon_Water_Partition_Coefficient_Koc Contaminants_Species6) -> 0 | K176: =(Attenuation_Fraction_organic_carbon) * (Contaminants_Organic_Carbon_Water_Partition_Coefficient_Koc Contaminants_Species6) -> 0 | L176: =(Attenuation_Fraction_organic_carbon) * (Contaminants_Organic_Carbon_Water_Partition_Coefficient_Koc Contaminants_Species6) -> 0 | M176: =(Attenuation_Fraction_organic_carbon) * (Contaminants_Organic_Carbon_Water_Partition_Coefficient_Koc Contaminants_Species6) -> 0 | N176: =(Attenuation_Fraction_organic_carbon) * (Contaminants_Organic_Carbon_Water_Partition_Coefficient_Koc Contaminants_Species6) -> 0 | O176: =(Attenuation_Fraction_organic_carbon) * (Contaminants_Organic_Carbon_Water_Partition_Coefficient_Koc Contaminants_Species6) -> 0 | P176: =(Attenuation_Fraction_organic_carbon) * (Contaminants_Organic_Carbon_Water_Partition_Coefficient_Koc Contaminants_Species6) -> 0 | Q176: =(Attenuation_Fraction_organic_carbon) * (Contaminants_Organic_Carbon_Water_Partition_Coefficient_Koc Contaminants_Species6) -> 0 | R176: =(Attenuation_Fraction_organic_carbon) * (Contaminants_Organic_Carbon_Water_Partition_Coefficient_Koc Contaminants_Species6) -> 0
A177: Distribution | C177: constant | D177: constant | E177: constant | F177: constant | G177: constant | H177: constant | I177: constant | J177: constant | K177: constant | L177: constant | M177: constant | N177: constant | O177: constant | P177: constant | Q177: constant | R177: constant
A178: Attenuation_Partition_Coefficient_Kd_Species_6_param1
A179: Attenuation_Partition_Coefficient_Kd_Species_6_param2
A180: Attenuation_Partition_Coefficient_Kd_Species_6_param3
A183: Attenuation_Retardation_Species_6 | B183: [-] | C183: =1 + 0.001 * (Attenuation_Partition_Coefficient_Kd_Species_6) * (Attenuation_Dry_bulk_density) / (Hydrogeology_Porosity Hydrogeology!$C:$C) -> 38641 | D183: =1 + 0.001 * (Attenuation_Partition_Coefficient_Kd_Species_6) * (Attenuation_Dry_bulk_density) / (Hydrogeology_Porosity Hydrogeology!$D:$D) -> 537 | E183: =1 + 0.001 * (Attenuation_Partition_Coefficient_Kd_Species_6) * (Attenuation_Dry_bulk_density) / (Hydrogeology_Porosity Hydrogeology!$E:$E) ->  | F183: =1 + 0.001 * (Attenuation_Partition_Coefficient_Kd_Species_6) * (Attenuation_Dry_bulk_density) / (Hydrogeology_Porosity Hydrogeology!$F:$F) ->  | G183: =1 + 0.001 * (Attenuation_Partition_Coefficient_Kd_Species_6) * (Attenuation_Dry_bulk_density) / (Hydrogeology_Porosity Hydrogeology!$G:$G) ->  | H183: =1 + 0.001 * (Attenuation_Partition_Coefficient_Kd_Species_6) * (Attenuation_Dry_bulk_density) / (Hydrogeology_Porosity Hydrogeology!$H:$H) ->  | I183: =1 + 0.001 * (Attenuation_Partition_Coefficient_Kd_Species_6) * (Attenuation_Dry_bulk_density) / (Hydrogeology_Porosity Hydrogeology!$I:$I) ->  | J183: =1 + 0.001 * (Attenuation_Partition_Coefficient_Kd_Species_6) * (Attenuation_Dry_bulk_density) / (Hydrogeology_Porosity Hydrogeology!$J:$J) ->  | K183: =1 + 0.001 * (Attenuation_Partition_Coefficient_Kd_Species_6) * (Attenuation_Dry_bulk_density) / (Hydrogeology_Porosity Hydrogeology!$K:$K) ->  | L183: =1 + 0.001 * (Attenuation_Partition_Coefficient_Kd_Species_6) * (Attenuation_Dry_bulk_density) / (Hydrogeology_Porosity Hydrogeology!$L:$L) ->  | M183: =1 + 0.001 * (Attenuation_Partition_Coefficient_Kd_Species_6) * (Attenuation_Dry_bulk_density) / (Hydrogeology_Porosity Hydrogeology!$M:$M) ->  | N183: =1 + 0.001 * (Attenuation_Partition_Coefficient_Kd_Species_6) * (Attenuation_Dry_bulk_density) / (Hydrogeology_Porosity Hydrogeology!$N:$N) ->  | O183: =1 + 0.001 * (Attenuation_Partition_Coefficient_Kd_Species_6) * (Attenuation_Dry_bulk_density) / (Hydrogeology_Porosity Hydrogeology!$O:$O) ->  | P183: =1 + 0.001 * (Attenuation_Partition_Coefficient_Kd_Species_6) * (Attenuation_Dry_bulk_density) / (Hydrogeology_Porosity Hydrogeology!$P:$P) ->  | Q183: =1 + 0.001 * (Attenuation_Partition_Coefficient_Kd_Species_6) * (Attenuation_Dry_bulk_density) / (Hydrogeology_Porosity Hydrogeology!$Q:$Q) ->  | R183: =1 + 0.001 * (Attenuation_Partition_Coefficient_Kd_Species_6) * (Attenuation_Dry_bulk_density) / (Hydrogeology_Porosity Hydrogeology!$R:$R) -> 
A184: Distribution | C184: constant | D184: constant | E184: constant | F184: constant | G184: constant | H184: constant | I184: constant | J184: constant | K184: constant | L184: constant | M184: constant | N184: constant | O184: constant | P184: constant | Q184: constant | R184: constant
A185: Attenuation_Retardation_Species_6_param1
A186: Attenuation_Retardation_Species_6_param2
A187: Attenuation_Retardation_Species_6_param3
A190: Attenuation_Half_Life_Species_6 | B190: days | C190: No Decay | D190: No Decay | E190: No Decay | F190: No Decay | G190: No Decay | H190: No Decay | I190: No Decay | J190: No Decay | K190: No Decay | L190: No Decay | M190: No Decay | N190: No Decay | O190: No Decay | P190: No Decay | Q190: No Decay | R190: No Decay
A191: Distribution | C191: constant | D191: constant | E191: constant | F191: constant | G191: constant | H191: constant | I191: constant | J191: constant | K191: constant | L191: constant | M191: constant | N191: constant | O191: constant | P191: constant | Q191: constant | R191: constant
A192: Attenuation_Half_Life_Species_6_param1
A193: Attenuation_Half_Life_Species_6_param2
A194: Attenuation_Half_Life_Species_6_param3
A197: Attenuation_Decay_Coefficient_Species_6 | B197: 1/s | C197: =IF((_xlfn.SINGLE(Attenuation_Half_Life_Species_6))<>"No Decay", LN(2) / ((_xlfn.SINGLE(Attenuation_Half_Life_Species_6)) *_xlfn.SINGLE( s_per_day)),0) -> 0 | D197: 0 | E197: 0 | F197: 0 | G197: 0 | H197: 0 | I197: 0 | J197: 0 | K197: 0 | L197: 0 | M197: 0 | N197: 0 | O197: 0 | P197: 0 | Q197: 0 | R197: 0
A198: Distribution | C198: constant | D198: constant | E198: constant | F198: constant | G198: constant | H198: constant | I198: constant | J198: constant | K198: constant | L198: constant | M198: constant | N198: constant | O198: constant | P198: constant | Q198: constant | R198: constant
A199: Attenuation_Decay_Coefficient_Species_6_param1
A200: Attenuation_Decay_Coefficient_Species_6_param2
A201: Attenuation_Decay_Coefficient_Species_6_param3
A204: =IF((Contaminants_Source_determinand_names Contaminants_Species7)=0,"Undefined",(Contaminants_Source_determinand_names Contaminants_Species7)) -> Antimony
A206: Attenuation_Partition_Coefficient_Kd_Species_7 | B206: L/kg | C206: =AL_Kd_Sb -> 140 | D206: =BGF_Kd_Sb -> 17 | E206: =(Attenuation_Fraction_organic_carbon) * (Contaminants_Organic_Carbon_Water_Partition_Coefficient_Koc Contaminants_Species7) -> 0 | F206: =(Attenuation_Fraction_organic_carbon) * (Contaminants_Organic_Carbon_Water_Partition_Coefficient_Koc Contaminants_Species7) -> 0 | G206: =(Attenuation_Fraction_organic_carbon) * (Contaminants_Organic_Carbon_Water_Partition_Coefficient_Koc Contaminants_Species7) -> 0 | H206: =(Attenuation_Fraction_organic_carbon) * (Contaminants_Organic_Carbon_Water_Partition_Coefficient_Koc Contaminants_Species7) -> 0 | I206: =(Attenuation_Fraction_organic_carbon) * (Contaminants_Organic_Carbon_Water_Partition_Coefficient_Koc Contaminants_Species7) -> 0 | J206: =(Attenuation_Fraction_organic_carbon) * (Contaminants_Organic_Carbon_Water_Partition_Coefficient_Koc Contaminants_Species7) -> 0 | K206: =(Attenuation_Fraction_organic_carbon) * (Contaminants_Organic_Carbon_Water_Partition_Coefficient_Koc Contaminants_Species7) -> 0 | L206: =(Attenuation_Fraction_organic_carbon) * (Contaminants_Organic_Carbon_Water_Partition_Coefficient_Koc Contaminants_Species7) -> 0 | M206: =(Attenuation_Fraction_organic_carbon) * (Contaminants_Organic_Carbon_Water_Partition_Coefficient_Koc Contaminants_Species7) -> 0 | N206: =(Attenuation_Fraction_organic_carbon) * (Contaminants_Organic_Carbon_Water_Partition_Coefficient_Koc Contaminants_Species7) -> 0 | O206: =(Attenuation_Fraction_organic_carbon) * (Contaminants_Organic_Carbon_Water_Partition_Coefficient_Koc Contaminants_Species7) -> 0 | P206: =(Attenuation_Fraction_organic_carbon) * (Contaminants_Organic_Carbon_Water_Partition_Coefficient_Koc Contaminants_Species7) -> 0 | Q206: =(Attenuation_Fraction_organic_carbon) * (Contaminants_Organic_Carbon_Water_Partition_Coefficient_Koc Contaminants_Species7) -> 0 | R206: =(Attenuation_Fraction_organic_carbon) * (Contaminants_Organic_Carbon_Water_Partition_Coefficient_Koc Contaminants_Species7) -> 0
A207: Distribution | C207: constant | D207: constant | E207: constant | F207: constant | G207: constant | H207: constant | I207: constant | J207: constant | K207: constant | L207: constant | M207: constant | N207: constant | O207: constant | P207: constant | Q207: constant | R207: constant
A208: Attenuation_Partition_Coefficient_Kd_Species_7_param1
A209: Attenuation_Partition_Coefficient_Kd_Species_7_param2
A210: Attenuation_Partition_Coefficient_Kd_Species_7_param3
A213: Attenuation_Retardation_Species_7 | B213: [-] | C213: =1 + 0.001 * (Attenuation_Partition_Coefficient_Kd_Species_7) * (Attenuation_Dry_bulk_density) / (Hydrogeology_Porosity Hydrogeology!$C:$C) -> 5601 | D213: =1 + 0.001 * (Attenuation_Partition_Coefficient_Kd_Species_7) * (Attenuation_Dry_bulk_density) / (Hydrogeology_Porosity Hydrogeology!$D:$D) -> 137 | E213: =1 + 0.001 * (Attenuation_Partition_Coefficient_Kd_Species_7) * (Attenuation_Dry_bulk_density) / (Hydrogeology_Porosity Hydrogeology!$E:$E) ->  | F213: =1 + 0.001 * (Attenuation_Partition_Coefficient_Kd_Species_7) * (Attenuation_Dry_bulk_density) / (Hydrogeology_Porosity Hydrogeology!$F:$F) ->  | G213: =1 + 0.001 * (Attenuation_Partition_Coefficient_Kd_Species_7) * (Attenuation_Dry_bulk_density) / (Hydrogeology_Porosity Hydrogeology!$G:$G) ->  | H213: =1 + 0.001 * (Attenuation_Partition_Coefficient_Kd_Species_7) * (Attenuation_Dry_bulk_density) / (Hydrogeology_Porosity Hydrogeology!$H:$H) ->  | I213: =1 + 0.001 * (Attenuation_Partition_Coefficient_Kd_Species_7) * (Attenuation_Dry_bulk_density) / (Hydrogeology_Porosity Hydrogeology!$I:$I) ->  | J213: =1 + 0.001 * (Attenuation_Partition_Coefficient_Kd_Species_7) * (Attenuation_Dry_bulk_density) / (Hydrogeology_Porosity Hydrogeology!$J:$J) ->  | K213: =1 + 0.001 * (Attenuation_Partition_Coefficient_Kd_Species_7) * (Attenuation_Dry_bulk_density) / (Hydrogeology_Porosity Hydrogeology!$K:$K) ->  | L213: =1 + 0.001 * (Attenuation_Partition_Coefficient_Kd_Species_7) * (Attenuation_Dry_bulk_density) / (Hydrogeology_Porosity Hydrogeology!$L:$L) ->  | M213: =1 + 0.001 * (Attenuation_Partition_Coefficient_Kd_Species_7) * (Attenuation_Dry_bulk_density) / (Hydrogeology_Porosity Hydrogeology!$M:$M) ->  | N213: =1 + 0.001 * (Attenuation_Partition_Coefficient_Kd_Species_7) * (Attenuation_Dry_bulk_density) / (Hydrogeology_Porosity Hydrogeology!$N:$N) ->  | O213: =1 + 0.001 * (Attenuation_Partition_Coefficient_Kd_Species_7) * (Attenuation_Dry_bulk_density) / (Hydrogeology_Porosity Hydrogeology!$O:$O) ->  | P213: =1 + 0.001 * (Attenuation_Partition_Coefficient_Kd_Species_7) * (Attenuation_Dry_bulk_density) / (Hydrogeology_Porosity Hydrogeology!$P:$P) ->  | Q213: =1 + 0.001 * (Attenuation_Partition_Coefficient_Kd_Species_7) * (Attenuation_Dry_bulk_density) / (Hydrogeology_Porosity Hydrogeology!$Q:$Q) ->  | R213: =1 + 0.001 * (Attenuation_Partition_Coefficient_Kd_Species_7) * (Attenuation_Dry_bulk_density) / (Hydrogeology_Porosity Hydrogeology!$R:$R) -> 
A214: Distribution | C214: constant | D214: constant | E214: constant | F214: constant | G214: constant | H214: constant | I214: constant | J214: constant | K214: constant | L214: constant | M214: constant | N214: constant | O214: constant | P214: constant | Q214: constant | R214: constant
A215: Attenuation_Retardation_Species_7_param1
A216: Attenuation_Retardation_Species_7_param2
A217: Attenuation_Retardation_Species_7_param3
A220: Attenuation_Half_Life_Species_7 | B220: days | C220: No Decay | D220: No Decay | E220: No Decay | F220: No Decay | G220: No Decay | H220: No Decay | I220: No Decay | J220: No Decay | K220: No Decay | L220: No Decay | M220: No Decay | N220: No Decay | O220: No Decay | P220: No Decay | Q220: No Decay | R220: No Decay
A221: Distribution | C221: constant | D221: constant | E221: constant | F221: constant | G221: constant | H221: constant | I221: constant | J221: constant | K221: constant | L221: constant | M221: constant | N221: constant | O221: constant | P221: constant | Q221: constant | R221: constant
A222: Attenuation_Half_Life_Species_7_param1
A223: Attenuation_Half_Life_Species_7_param2
A224: Attenuation_Half_Life_Species_7_param3
A227: Attenuation_Decay_Coefficient_Species_7 | B227: 1/s | C227: =IF((_xlfn.SINGLE(Attenuation_Half_Life_Species_7))<>"No Decay", LN(2) / ((_xlfn.SINGLE(Attenuation_Half_Life_Species_7)) *_xlfn.SINGLE( s_per_day)),0) -> 0 | D227: 0 | E227: 0 | F227: 0 | G227: 0 | H227: 0 | I227: 0 | J227: 0 | K227: 0 | L227: 0 | M227: 0 | N227: 0 | O227: 0 | P227: 0 | Q227: 0 | R227: 0
A228: Distribution | C228: constant | D228: constant | E228: constant | F228: constant | G228: constant | H228: constant | I228: constant | J228: constant | K228: constant | L228: constant | M228: constant | N228: constant | O228: constant | P228: constant | Q228: constant | R228: constant
A229: Attenuation_Decay_Coefficient_Species_7_param1
A230: Attenuation_Decay_Coefficient_Species_7_param2
A231: Attenuation_Decay_Coefficient_Species_7_param3
A234: =IF((Contaminants_Source_determinand_names Contaminants_Species8)=0,"Undefined",(Contaminants_Source_determinand_names Contaminants_Species8)) -> Barium
A236: Attenuation_Partition_Coefficient_Kd_Species_8 | B236: L/kg | C236: =AL_Kd_Ba -> 17 | D236: =BGF_Kd_Ba -> 17 | E236: =(Attenuation_Fraction_organic_carbon) * (Contaminants_Organic_Carbon_Water_Partition_Coefficient_Koc Contaminants_Species8) -> 0 | F236: =(Attenuation_Fraction_organic_carbon) * (Contaminants_Organic_Carbon_Water_Partition_Coefficient_Koc Contaminants_Species8) -> 0 | G236: =(Attenuation_Fraction_organic_carbon) * (Contaminants_Organic_Carbon_Water_Partition_Coefficient_Koc Contaminants_Species8) -> 0 | H236: =(Attenuation_Fraction_organic_carbon) * (Contaminants_Organic_Carbon_Water_Partition_Coefficient_Koc Contaminants_Species8) -> 0 | I236: =(Attenuation_Fraction_organic_carbon) * (Contaminants_Organic_Carbon_Water_Partition_Coefficient_Koc Contaminants_Species8) -> 0 | J236: =(Attenuation_Fraction_organic_carbon) * (Contaminants_Organic_Carbon_Water_Partition_Coefficient_Koc Contaminants_Species8) -> 0 | K236: =(Attenuation_Fraction_organic_carbon) * (Contaminants_Organic_Carbon_Water_Partition_Coefficient_Koc Contaminants_Species8) -> 0 | L236: =(Attenuation_Fraction_organic_carbon) * (Contaminants_Organic_Carbon_Water_Partition_Coefficient_Koc Contaminants_Species8) -> 0 | M236: =(Attenuation_Fraction_organic_carbon) * (Contaminants_Organic_Carbon_Water_Partition_Coefficient_Koc Contaminants_Species8) -> 0 | N236: =(Attenuation_Fraction_organic_carbon) * (Contaminants_Organic_Carbon_Water_Partition_Coefficient_Koc Contaminants_Species8) -> 0 | O236: =(Attenuation_Fraction_organic_carbon) * (Contaminants_Organic_Carbon_Water_Partition_Coefficient_Koc Contaminants_Species8) -> 0 | P236: =(Attenuation_Fraction_organic_carbon) * (Contaminants_Organic_Carbon_Water_Partition_Coefficient_Koc Contaminants_Species8) -> 0 | Q236: =(Attenuation_Fraction_organic_carbon) * (Contaminants_Organic_Carbon_Water_Partition_Coefficient_Koc Contaminants_Species8) -> 0 | R236: =(Attenuation_Fraction_organic_carbon) * (Contaminants_Organic_Carbon_Water_Partition_Coefficient_Koc Contaminants_Species8) -> 0
A237: Distribution | C237: constant | D237: constant | E237: constant | F237: constant | G237: constant | H237: constant | I237: constant | J237: constant | K237: constant | L237: constant | M237: constant | N237: constant | O237: constant | P237: constant | Q237: constant | R237: constant
A238: Attenuation_Partition_Coefficient_Kd_Species_8_param1
A239: Attenuation_Partition_Coefficient_Kd_Species_8_param2
A240: Attenuation_Partition_Coefficient_Kd_Species_8_param3
A243: Attenuation_Retardation_Species_8 | B243: [-] | C243: =1 + 0.001 * (Attenuation_Partition_Coefficient_Kd_Species_8) * (Attenuation_Dry_bulk_density) / (Hydrogeology_Porosity Hydrogeology!$C:$C) -> 681 | D243: =1 + 0.001 * (Attenuation_Partition_Coefficient_Kd_Species_8) * (Attenuation_Dry_bulk_density) / (Hydrogeology_Porosity Hydrogeology!$D:$D) -> 137 | E243: =1 + 0.001 * (Attenuation_Partition_Coefficient_Kd_Species_8) * (Attenuation_Dry_bulk_density) / (Hydrogeology_Porosity Hydrogeology!$E:$E) ->  | F243: =1 + 0.001 * (Attenuation_Partition_Coefficient_Kd_Species_8) * (Attenuation_Dry_bulk_density) / (Hydrogeology_Porosity Hydrogeology!$F:$F) ->  | G243: =1 + 0.001 * (Attenuation_Partition_Coefficient_Kd_Species_8) * (Attenuation_Dry_bulk_density) / (Hydrogeology_Porosity Hydrogeology!$G:$G) ->  | H243: =1 + 0.001 * (Attenuation_Partition_Coefficient_Kd_Species_8) * (Attenuation_Dry_bulk_density) / (Hydrogeology_Porosity Hydrogeology!$H:$H) ->  | I243: =1 + 0.001 * (Attenuation_Partition_Coefficient_Kd_Species_8) * (Attenuation_Dry_bulk_density) / (Hydrogeology_Porosity Hydrogeology!$I:$I) ->  | J243: =1 + 0.001 * (Attenuation_Partition_Coefficient_Kd_Species_8) * (Attenuation_Dry_bulk_density) / (Hydrogeology_Porosity Hydrogeology!$J:$J) ->  | K243: =1 + 0.001 * (Attenuation_Partition_Coefficient_Kd_Species_8) * (Attenuation_Dry_bulk_density) / (Hydrogeology_Porosity Hydrogeology!$K:$K) ->  | L243: =1 + 0.001 * (Attenuation_Partition_Coefficient_Kd_Species_8) * (Attenuation_Dry_bulk_density) / (Hydrogeology_Porosity Hydrogeology!$L:$L) ->  | M243: =1 + 0.001 * (Attenuation_Partition_Coefficient_Kd_Species_8) * (Attenuation_Dry_bulk_density) / (Hydrogeology_Porosity Hydrogeology!$M:$M) ->  | N243: =1 + 0.001 * (Attenuation_Partition_Coefficient_Kd_Species_8) * (Attenuation_Dry_bulk_density) / (Hydrogeology_Porosity Hydrogeology!$N:$N) ->  | O243: =1 + 0.001 * (Attenuation_Partition_Coefficient_Kd_Species_8) * (Attenuation_Dry_bulk_density) / (Hydrogeology_Porosity Hydrogeology!$O:$O) ->  | P243: =1 + 0.001 * (Attenuation_Partition_Coefficient_Kd_Species_8) * (Attenuation_Dry_bulk_density) / (Hydrogeology_Porosity Hydrogeology!$P:$P) ->  | Q243: =1 + 0.001 * (Attenuation_Partition_Coefficient_Kd_Species_8) * (Attenuation_Dry_bulk_density) / (Hydrogeology_Porosity Hydrogeology!$Q:$Q) ->  | R243: =1 + 0.001 * (Attenuation_Partition_Coefficient_Kd_Species_8) * (Attenuation_Dry_bulk_density) / (Hydrogeology_Porosity Hydrogeology!$R:$R) -> 
A244: Distribution | C244: constant | D244: constant | E244: constant | F244: constant | G244: constant | H244: constant | I244: constant | J244: constant | K244: constant | L244: constant | M244: constant | N244: constant | O244: constant | P244: constant | Q244: constant | R244: constant
A245: Attenuation_Retardation_Species_8_param1
A246: Attenuation_Retardation_Species_8_param2
A247: Attenuation_Retardation_Species_8_param3
A250: Attenuation_Half_Life_Species_8 | B250: days | C250: No Decay | D250: No Decay | E250: No Decay | F250: No Decay | G250: No Decay | H250: No Decay | I250: No Decay | J250: No Decay | K250: No Decay | L250: No Decay | M250: No Decay | N250: No Decay | O250: No Decay | P250: No Decay | Q250: No Decay | R250: No Decay
A251: Distribution | C251: constant | D251: constant | E251: constant | F251: constant | G251: constant | H251: constant | I251: constant | J251: constant | K251: constant | L251: constant | M251: constant | N251: constant | O251: constant | P251: constant | Q251: constant | R251: constant
A252: Attenuation_Half_Life_Species_8_param1
A253: Attenuation_Half_Life_Species_8_param2
A254: Attenuation_Half_Life_Species_8_param3
A257: Attenuation_Decay_Coefficient_Species_8 | B257: 1/s | C257: =IF((_xlfn.SINGLE(Attenuation_Half_Life_Species_8))<>"No Decay", LN(2) / ((_xlfn.SINGLE(Attenuation_Half_Life_Species_8)) *_xlfn.SINGLE( s_per_day)),0) -> 0 | D257: 0 | E257: 0 | F257: 0 | G257: 0 | H257: 0 | I257: 0 | J257: 0 | K257: 0 | L257: 0 | M257: 0 | N257: 0 | O257: 0 | P257: 0 | Q257: 0 | R257: 0
A258: Distribution | C258: constant | D258: constant | E258: constant | F258: constant | G258: constant | H258: constant | I258: constant | J258: constant | K258: constant | L258: constant | M258: constant | N258: constant | O258: constant | P258: constant | Q258: constant | R258: constant
A259: Attenuation_Decay_Coefficient_Species_8_param1
A260: Attenuation_Decay_Coefficient_Species_8_param2
A261: Attenuation_Decay_Coefficient_Species_8_param3

Sheet WaterBalance
A1: WATER BALANCE
A3: User defined
A5: Enter your own calculations for the water balance
A6: Carry fluxes and velocities over onto the Pathway sheet

Sheet Pathways
A1: PATHWAY SUMMARY
A3: Path 1 | C3: Section 1 | E3: Section 2 | G3: Section 3
A4: Path 1 Type | C4: Source | E4: Unit | G4: Unit
A5: Path 1 Name | C5: Inert Restoration Material | E5: Attenuation Layer: Node 1 | G5: Beenham Grange Formation: Node 1
A6: Path 1 Process | C6: Declining source | E6: ADRD (1D) + Dilution | G6: No Processes
A7: Path 1 Standards | F7: Target Standard | G7: EAL (GW)
A8: Path 1 Parameter1 | B8: Q_managed [m3/s] | C8: 0 | D8: Velocity [m/s] | E8: =(Attenuation_Lay Hydrogeology_Velocity) -> 3.804081633e-08
A9: Path 1 Parameter2 | B9: Managed time [years] | C9: 0 | D9: Dispersivity [m] | E9: =E10/10 -> 0.1
A10: Path 1 Parameter3 | B10: Q_path [m3/s] | C10: =Qside_a -> 2.369010857e-05 | D10: Travel Distance [m] | E10: =AL_traveldis -> 1
A11: Path 1 Parameter4 | B11: Q_decline [m3/s] | C11: =Qside_a -> 2.369010857e-05 | D11: Mixing Depth [m]
A12: Path 1 Parameter5 | D12: Mixing Width [m]
A13: Path 1 Parameter6 | D13: Q_Dilute [m3/s] | E13: =Q_RO -> 0.001519734772 | F13: Q_Dilute [m3/s] | G13: 0
A16: Path 2 | C16: Section 1 | E16: Section 2 | G16: Section 3 | I16: Section 4
A17: Path 2 Type | C17: Source | E17: Unit | G17: Unit | I17: Receptor
A18: Path 2 Name | C18: Inert Restoration Material | E18: Attenuation Layer: Node 2 | G18: Beenham Grange Formation: Node 2 | I18: Groundwater
A19: Path 2 Process | C19: Declining source | E19: ADRD (1D) + Dilution | G19: ADRD (1D) + Dilution | I19: Monitoring Borehole
A20: Path 2 Standards | H20: Target Standard | I20: EAL (GW)
A21: Path 2 Parameter1 | B21: Q_managed [m3/s] | C21: 0 | D21: Velocity [m/s] | E21: =(Attenuation_Lay Hydrogeology_Velocity) -> 3.804081633e-08 | F21: Velocity [m/s] | G21: =(Beenham_Grange_ Hydrogeology_Velocity) -> 2.118e-05
A22: Path 2 Parameter2 | B22: Managed time [years] | C22: 0 | D22: Dispersivity [m] | E22: =E23/10 -> 0.1 | F22: Dispersivity [m] | G22: =G23/10 -> 2
A23: Path 2 Parameter3 | B23: Q_path [m3/s] | C23: =Qside_a -> 2.369010857e-05 | D23: Travel Distance [m] | E23: =AL_traveldis -> 1 | F23: Travel Distance [m] | G23: =dis_gw_a -> 20
A24: Path 2 Parameter4 | B24: Q_decline [m3/s] | C24: =Qside_a -> 2.369010857e-05 | D24: Mixing Depth [m] | F24: Mixing Depth [m]
A25: Path 2 Parameter5 | D25: Mixing Width [m] | F25: Mixing Width [m]
A26: Path 2 Parameter6 | D26: Q_Dilute [m3/s] | E26: =Q_RO -> 0.001519734772 | F26: Q_Dilute [m3/s] | G26: =Path2_Param5*Path2_Param4*(Beenham_Grange_ Hydrogeology_Hydraulic_Conductivity)*(Beenham_Grange_ Hydrogeology_Hydraulic_Gradient) -> 0 | H26: Q_dilute [m3/s] | I26: =0 -> 0

Sheet Groundwater (hidden)
A1: RECEPTOR: Groundwater
A3: Receptor Options
F5: No further dilution along pathway
F7: No data requirement

Sheet Simulation
A1: SIMULATION PARAMETERS
B3: Monte Carlo Analysis with Crystal Ball | J3: Named Constants
C5: Reported Percentile | F5: 95 | K5: s_per_year | L5: =365.25*60*60*24 -> 31557600
C6: Number of simulations | F6: 10000 | K6: s_per_day | L6: =60*60*24 -> 86400
J9: Laplace Transform Solution Parameters
C11: Minimise while running: | K11: sigma | L11: 0
K12: nu | L12: 1
K13: nsum | L13: 16
K14: omega | L14: 11
B17: Reporting Options
C22: Number of timeslices for breakthrough curves | G22: 100
B24: The timeslices specified on the results sheets are saved below.
C25: Path1 timeslices in years | E25: Path2 timeslices in years
C26: TS_Path1 | E26: TS_Path2
C27: 10 | E27: 10
C28: 20 | E28: 20
C29: 30 | E29: 30
C30: 40 | E30: 40
C31: 50 | E31: 50
C32: 60 | E32: 60
C33: 70 | E33: 70
C34: 80 | E34: 80
C35: 90 | E35: 90
C36: 100 | E36: 100
C37: 110 | E37: 110
C38: 120 | E38: 120
C39: 130 | E39: 130
C40: 140 | E40: 140
C41: 150 | E41: 150
C42: 160 | E42: 160
C43: 170 | E43: 170
C44: 180 | E44: 180
C45: 190 | E45: 190
C46: 200 | E46: 200
C47: 210 | E47: 210
C48: 220 | E48: 220
C49: 230 | E49: 230
C50: 240 | E50: 240
C51: 250 | E51: 250
C52: 260 | E52: 260
C53: 270 | E53: 270
C54: 280 | E54: 280
C55: 290 | E55: 290
C56: 300 | E56: 300
C57: 310 | E57: 310
C58: 320 | E58: 320
C59: 330 | E59: 330
C60: 340 | E60: 340
C61: 350 | E61: 350
C62: 360 | E62: 360
C63: 370 | E63: 370
C64: 380 | E64: 380
C65: 390 | E65: 390
C66: 400 | E66: 400
C67: 410 | E67: 410
C68: 420 | E68: 420
C69: 430 | E69: 430
C70: 440 | E70: 440
C71: 450 | E71: 450
C72: 460 | E72: 460
C73: 470 | E73: 470
C74: 480 | E74: 480
C75: 490 | E75: 490
C76: 500 | E76: 500
C77: 510 | E77: 510
C78: 520 | E78: 520
C79: 530 | E79: 530
C80: 540 | E80: 540
C81: 550 | E81: 550
C82: 560 | E82: 560
C83: 570 | E83: 570
C84: 580 | E84: 580
C85: 590 | E85: 590
C86: 600 | E86: 600
C87: 610 | E87: 610
C88: 620 | E88: 620
C89: 630 | E89: 630
C90: 640 | E90: 640
C91: 650 | E91: 650
C92: 660 | E92: 660
C93: 670 | E93: 670
C94: 680 | E94: 680
C95: 690 | E95: 690
C96: 700 | E96: 700
C97: 710 | E97: 710
C98: 720 | E98: 720
C99: 730 | E99: 730
C100: 740 | E100: 740
C101: 750 | E101: 750
C102: 760 | E102: 760
C103: 770 | E103: 770
C104: 780 | E104: 780
C105: 790 | E105: 790
C106: 800 | E106: 800
C107: 810 | E107: 810
C108: 820 | E108: 820
C109: 830 | E109: 830
C110: 840 | E110: 840
C111: 850 | E111: 850
C112: 860 | E112: 860
C113: 870 | E113: 870
C114: 880 | E114: 880
C115: 890 | E115: 890
C116: 900 | E116: 900
C117: 910 | E117: 910
C118: 920 | E118: 920
C119: 930 | E119: 930
C120: 940 | E120: 940
C121: 950 | E121: 950
C122: 960 | E122: 960
C123: 970 | E123: 970
C124: 980 | E124: 980
C125: 990 | E125: 990
C126: 1000 | E126: 1000

Sheet Audit
A1: AUDIT TRAIL SHEET
A3: Author | B3: Date | C3: Time | E3: Cell Address | G3: New Value | H3: Old Value | I3: Cell Name
A6: Saved 28/02/2023: 14:38:24 Level Number: 5
A8: BREAKTHROUGH RESULTS
A10: Advanced
A11: Pollutant Linkage: Inert Restorati, Attenuation Layer, Beenham Grange Formation | E11: Pollutant Linkage: Inert Restorati, Attenuation Layer, Beenham Grange Formation, Groundwater | I11: Pollutant Linkage: Inert Restorati, Attenuation Layer, Beenham Grange Formation, River Enborne | M11: Pollutant Linkage: Inert Restorati, Attenuation Layer, Beenham Grange Formation, Stream A
A12: Concentrations in mg/L in Beenham Grange Formation | E12: Concentrations in mg/L in Groundwater | I12: Concentrations in mg/L in River Enborne | M12: Concentrations in mg/L in Stream A
A14: Compared with EAL (GW) target concentration in mg/L | E14: Compared with EAL (GW) target concentration in mg/L | I14: Compared with EAL (River Enborne) target concentration in mg/L | M14: Compared with EAL (Stream A) target concentration in mg/L
B15: 0.266 | C15: 0.0002 | F15: 0.266 | G15: 0.0002 | J15: 0.266 | K15: 0.0012 | N15: 0.266 | O15: 0.0012
A17: Time(years) | B17: Species1 | C17: Species2 | E17: Time(years) | F17: Species1 | G17: Species2 | I17: Time(years) | J17: Species1 | K17: Species2 | M17: Time(years) | N17: Species1 | O17: Species2
B18: Ammoniacal Nitrogen | C18: Lead | F18: Ammoniacal Nitrogen | G18: Lead | J18: Ammoniacal Nitrogen | K18: Lead | N18: Ammoniacal Nitrogen | O18: Lead
A19: 10 | B19: 0.0009776601394 | C19: 0.0001466490209 | E19: 10 | F19: 0.0007883920779 | G19: 0.0001182588117 | I19: 10 | J19: 8.901937182e-07 | K19: 1.335290577e-07 | M19: 10 | N19: 0.0005886678445 | O19: 8.830017668e-05
A20: 20 | B20: 0.00224788958 | C20: 0.000337183437 | E20: 20 | F20: 0.002132718538 | G20: 0.0003199077807 | I20: 20 | J20: 2.062484787e-06 | K20: 3.093727181e-07 | M20: 20 | N20: 0.001359961035 | O20: 0.0002039941552
A21: 30 | B21: 0.002916420569 | C21: 0.0004374630853 | E21: 30 | F21: 0.002849649501 | G21: 0.0004274474251 | I21: 30 | J21: 2.679767804e-06 | K21: 4.019651706e-07 | M21: 30 | N21: 0.001766019695 | O21: 0.0002649029543
A22: 40 | B22: 0.003274183221 | C22: 0.0004911274831 | E22: 40 | F22: 0.003231180318 | G22: 0.0004846770477 | I22: 40 | J22: 3.010006566e-06 | K22: 4.515009849e-07 | M22: 40 | N22: 0.001983280383 | O22: 0.0002974920574
A23: 50 | B23: 0.003475037279 | C23: 0.0005212555918 | E23: 50 | F23: 0.003444324101 | G23: 0.0005166486152 | I23: 50 | J23: 3.195361083e-06 | K23: 4.793041625e-07 | M23: 50 | N23: 0.002105234863 | O23: 0.0003157852294
A24: 60 | B24: 0.0035918349 | C24: 0.000538775235 | E24: 60 | F24: 0.003567861962 | G24: 0.0005351792943 | I24: 60 | J24: 3.303127588e-06 | K24: 4.954691382e-07 | M24: 60 | N24: 0.002176144572 | O24: 0.0003264216859
A25: 70 | B25: 0.003661192473 | C25: 0.000549178871 | E25: 70 | F25: 0.003641097191 | G25: 0.0005461645786 | I25: 70 | J25: 3.367116835e-06 | K25: 5.050675252e-07 | M25: 70 | N25: 0.002218250448 | O25: 0.0003327375672
A26: 80 | B26: 0.003702660995 | C26: 0.0005553991492 | E26: 80 | F26: 0.003684882759 | G26: 0.0005527324139 | I26: 80 | J26: 3.40537584e-06 | K26: 5.10806376e-07 | M26: 80 | N26: 0.002243425401 | O26: 0.0003365138101
A27: 90 | B27: 0.00372720459 | C27: 0.0005590806884 | E27: 90 | F27: 0.003710854199 | G27: 0.0005566281298 | I27: 90 | J27: 3.428022659e-06 | K27: 5.142033988e-07 | M27: 90 | N27: 0.002258326628 | O27: 0.0003387489941
A28: 100 | B28: 0.003741215591 | C28: 0.0005611823386 | E28: 100 | F28: 0.003725768279 | G28: 0.0005588652418 | I28: 100 | J28: 3.440955125e-06 | K28: 5.161432687e-07 | M28: 100 | N28: 0.002266834923 | O28: 0.0003400252384
A29: 110 | B29: 0.003748538241 | C29: 0.0005622807361 | E29: 110 | F29: 0.003733675434 | G29: 0.000560051315 | I29: 110 | J29: 3.447719506e-06 | K29: 5.171579259e-07 | M29: 110 | N29: 0.00227128389 | O29: 0.0003406925835
A30: 120 | B30: 0.003751543117 | C30: 0.0005627314676 | E30: 120 | F30: 0.003737066898 | G30: 0.0005605600346 | I30: 120 | J30: 3.450502337e-06 | K30: 5.175753505e-07 | M30: 120 | N30: 0.002273112438 | O30: 0.0003409668656
A31: 130 | B31: 0.003751722454 | C31: 0.000562758368 | E31: 130 | F31: 0.003737507489 | G31: 0.0005606261234 | I31: 130 | J31: 3.450679843e-06 | K31: 5.176019765e-07 | M31: 130 | N31: 0.002273226269 | O31: 0.0003409839403
A32: 140 | B32: 0.003750031807 | C32: 0.0005625047711 | E32: 140 | F32: 0.003735997448 | G32: 0.0005603996173 | I32: 140 | J32: 3.449133215e-06 | K32: 5.173699823e-07 | M32: 140 | N32: 0.00227220532 | O32: 0.000340830798
A33: 150 | B33: 0.003747091968 | C33: 0.0005620637951 | E33: 150 | F33: 0.003733185603 | G33: 0.0005599778404 | I33: 150 | J33: 3.446434881e-06 | K33: 5.169652322e-07 | M33: 150 | N33: 0.002270426334 | O33: 0.0003405639502
A34: 160 | B34: 0.003743311223 | C34: 0.0005614966835 | E34: 160 | F34: 0.003729498129 | G34: 0.0005594247193 | I34: 160 | J34: 3.4429613e-06 | K34: 5.164441951e-07 | M34: 160 | N34: 0.002268137084 | O34: 0.0003402205626
A35: 170 | B35: 0.003738960958 | C35: 0.0005608441438 | E35: 170 | F35: 0.003725217981 | G35: 0.0005587826972 | I35: 170 | J35: 3.438962684e-06 | K35: 5.158444025e-07 | M35: 170 | N35: 0.002265502252 | O35: 0.0003398253378
A36: 180 | B36: 0.003734223223 | C36: 0.0005601334835 | E36: 180 | F36: 0.003720534785 | G36: 0.0005580802178 | I36: 180 | J36: 3.434606868e-06 | K36: 5.151910303e-07 | M36: 180 | N36: 0.002262632309 | O36: 0.0003393948464
A37: 190 | B37: 0.003729221123 | C37: 0.0005593831684 | E37: 190 | F37: 0.00371557666 | G37: 0.000557336499 | I37: 190 | J37: 3.430007346e-06 | K37: 5.145011019e-07 | M37: 190 | N37: 0.002259601955 | O37: 0.0003389402933
A38: 200 | B38: 0.003724038496 | C38: 0.0005586057744 | E38: 200 | F38: 0.003710430791 | G38: 0.0005565646187 | I38: 200 | J38: 3.425241403e-06 | K38: 5.137862105e-07 | M38: 200 | N38: 0.002256462061 | O38: 0.0003384693092
A39: 210 | B39: 0.003718732798 | C39: 0.0005578099198 | E39: 210 | F39: 0.003705156889 | G39: 0.0005557735334 | I39: 210 | J39: 3.420362003e-06 | K39: 5.130543005e-07 | M39: 210 | N39: 0.002253247489 | O39: 0.0003379871233
A40: 220 | B40: 0.003713343624 | C40: 0.0005570015437 | E40: 220 | F40: 0.003699796076 | G40: 0.0005549694115 | I40: 220 | J40: 3.415405645e-06 | K40: 5.123108468e-07 | M40: 220 | N40: 0.002249982263 | O40: 0.0003374973394
A41: 230 | B41: 0.003707898398 | C41: 0.0005561847597 | E41: 230 | F41: 0.00369437682 | G41: 0.0005541565231 | I41: 230 | J41: 3.410397607e-06 | K41: 5.115596411e-07 | M41: 230 | N41: 0.002246683022 | O41: 0.0003370024533
A42: 240 | B42: 0.003702416197 | C42: 0.0005553624296 | E42: 240 | F42: 0.003688918916 | G42: 0.0005533378374 | I42: 240 | J42: 3.405355475e-06 | K42: 5.108033212e-07 | M42: 240 | N42: 0.002243361343 | O42: 0.0003365042014
A43: 250 | B43: 0.003696910351 | C43: 0.0005545365526 | E43: 250 | F43: 0.003683436185 | G43: 0.0005525154278 | I43: 250 | J43: 3.400291533e-06 | K43: 5.100437299e-07 | M43: 250 | N43: 0.00224002531 | O43: 0.0003360037966
A44: 260 | B44: 0.003691390201 | C44: 0.0005537085302 | E44: 260 | F44: 0.003677938314 | G44: 0.0005516907471 | I44: 260 | J44: 3.395214392e-06 | K44: 5.092821588e-07 | M44: 260 | N44: 0.002236680594 | O44: 0.0003355020891
A45: 270 | B45: 0.00368586232 | C45: 0.000552879348 | E45: 270 | F45: 0.003672432113 | G45: 0.0005508648169 | I45: 270 | J45: 3.39013011e-06 | K45: 5.085195165e-07 | M45: 270 | N45: 0.002233331181 | O45: 0.0003349996771
A46: 280 | B46: 0.003680331344 | C46: 0.0005520497016 | E46: 280 | F46: 0.003666922384 | G46: 0.0005500383575 | I46: 280 | J46: 3.38504296e-06 | K46: 5.07756444e-07 | M46: 280 | N46: 0.002229979883 | O46: 0.0003344969824
A47: 290 | B47: 0.00367480055 | C47: 0.0005512200825 | E47: 290 | F47: 0.003661412523 | G47: 0.0005492118784 | I47: 290 | J47: 3.379955963e-06 | K47: 5.069933944e-07 | M47: 290 | N47: 0.00222662869 | O47: 0.0003339943035
A48: 300 | B48: 0.003669272263 | C48: 0.0005503908395 | E48: 300 | F48: 0.003655904936 | G48: 0.0005483857404 | I48: 300 | J48: 3.37487126e-06 | K48: 5.06230689e-07 | M48: 300 | N48: 0.002223279011 | O48: 0.0003334918516
A49: 310 | B49: 0.003663748133 | C49: 0.00054956222 | E49: 310 | F49: 0.003650401332 | G49: 0.0005475601998 | I49: 310 | J49: 3.369790373e-06 | K49: 5.05468556e-07 | M49: 310 | N49: 0.002219931848 | O49: 0.0003329897771
A50: 320 | B50: 0.003658229333 | C50: 0.0005487343999 | E50: 320 | F50: 0.003644902925 | G50: 0.0005467354387 | I50: 320 | J50: 3.364714383e-06 | K50: 5.047071575e-07 | M50: 320 | N50: 0.002216587912 | O50: 0.0003324881867
A51: 330 | B51: 0.003652716698 | C51: 0.0005479075047 | E51: 330 | F51: 0.003639410579 | G51: 0.0005459115869 | I51: 330 | J51: 3.35964406e-06 | K51: 5.03946609e-07 | M51: 330 | N51: 0.00221324771 | O51: 0.0003319871564
A52: 340 | B52: 0.003647210823 | C52: 0.0005470816235 | E52: 340 | F52: 0.003633924911 | G52: 0.0005450887366 | I52: 340 | J52: 3.354579952e-06 | K52: 5.031869927e-07 | M52: 340 | N52: 0.002209911602 | O52: 0.0003314867404
A53: 350 | B53: 0.003641712131 | C53: 0.0005462568197 | E53: 350 | F53: 0.003628446357 | G53: 0.0005442669536 | I53: 350 | J53: 3.349522448e-06 | K53: 5.024283672e-07 | M53: 350 | N53: 0.002206579847 | O53: 0.000330986977
A54: 360 | B54: 0.003636220923 | C54: 0.0005454331384 | E54: 360 | F54: 0.00362297523 | G54: 0.0005434462845 | I54: 360 | J54: 3.344471826e-06 | K54: 5.016707738e-07 | M54: 360 | N54: 0.002203252625 | O54: 0.0003304878938
A55: 370 | B55: 0.003630737411 | C55: 0.0005446106116 | E55: 370 | F55: 0.003617511749 | G55: 0.0005426267624 | I55: 370 | J55: 3.339428281e-06 | K55: 5.009142422e-07 | M55: 370 | N55: 0.002199930066 | O55: 0.0003299895099
A56: 380 | B56: 0.003625261746 | C56: 0.0005437892619 | E56: 380 | F56: 0.003612056071 | G56: 0.0005418084107 | I56: 380 | J56: 3.334391954e-06 | K56: 5.00158793e-07 | M56: 380 | N56: 0.002196612262 | O56: 0.0003294918392
A57: 390 | B57: 0.003619794032 | C57: 0.0005429691048 | E57: 390 | F57: 0.003606608305 | G57: 0.0005409912457 | I57: 390 | J57: 3.329362939e-06 | K57: 4.994044408e-07 | M57: 390 | N57: 0.002193299275 | O57: 0.0003289948912
A58: 400 | B58: 0.003614334343 | C58: 0.0005421501514 | E58: 400 | F58: 0.003601168525 | G58: 0.0005401752787 | I58: 400 | J58: 3.324341304e-06 | K58: 4.986511956e-07 | M58: 400 | N58: 0.00218999115 | O58: 0.0003284986725
A59: 410 | B59: 0.003608882726 | C59: 0.0005413324089 | E59: 410 | F59: 0.003595736782 | G59: 0.0005393605173 | I59: 410 | J59: 3.319327094e-06 | K59: 4.978990641e-07 | M59: 410 | N59: 0.002186687916 | O59: 0.0003280031874
A60: 420 | B60: 0.003603439215 | C60: 0.0005405158822 | E60: 420 | F60: 0.003590313111 | G60: 0.0005385469667 | I60: 420 | J60: 3.314320339e-06 | K60: 4.971480508e-07 | M60: 420 | N60: 0.002183389593 | O60: 0.000327508439
A61: 430 | B61: 0.003598003829 | C61: 0.0005397005743 | E61: 430 | F61: 0.003584897532 | G61: 0.0005377346299 | I61: 430 | J61: 3.309321056e-06 | K61: 4.963981585e-07 | M61: 430 | N61: 0.002180096194 | O61: 0.0003270144291
A62: 440 | B62: 0.003592576579 | C62: 0.0005388864868 | E62: 440 | F62: 0.003579490058 | G62: 0.0005369235087 | I62: 440 | J62: 3.304329257e-06 | K62: 4.956493886e-07 | M62: 440 | N62: 0.002176807724 | O62: 0.0003265211586
A63: 450 | B63: 0.003587157469 | C63: 0.0005380736204 | E63: 450 | F63: 0.003574090693 | G63: 0.000536113604 | I63: 450 | J63: 3.299344946e-06 | K63: 4.949017419e-07 | M63: 450 | N63: 0.002173524187 | O63: 0.000326028628
A64: 460 | B64: 0.003581746501 | C64: 0.0005372619752 | E64: 460 | F64: 0.003568699439 | G64: 0.0005353049158 | I64: 460 | J64: 3.294368122e-06 | K64: 4.941552184e-07 | M64: 460 | N64: 0.002170245583 | O64: 0.0003255368374
A65: 470 | B65: 0.003576343671 | C65: 0.0005364515506 | E65: 470 | F65: 0.003563316291 | G65: 0.0005344974437 | I65: 470 | J65: 3.289398783e-06 | K65: 4.934098175e-07 | M65: 470 | N65: 0.002166971909 | O65: 0.0003250457864
A66: 480 | B66: 0.003570948972 | C66: 0.0005356423458 | E66: 480 | F66: 0.003557941245 | G66: 0.0005336911868 | I66: 480 | J66: 3.284436924e-06 | K66: 4.926655386e-07 | M66: 480 | N66: 0.002163703163 | O66: 0.0003245554744
A67: 490 | B67: 0.003565562398 | C67: 0.0005348343597 | E67: 490 | F67: 0.003552574294 | G67: 0.0005328861441 | I67: 490 | J67: 3.279482537e-06 | K67: 4.919223806e-07 | M67: 490 | N67: 0.002160439339 | O67: 0.0003240659009
A68: 500 | B68: 0.00356018394 | C68: 0.000534027591 | E68: 500 | F68: 0.003547215429 | G68: 0.0005320823143 | I68: 500 | J68: 3.274535615e-06 | K68: 4.911803423e-07 | M68: 500 | N68: 0.002157180433 | O68: 0.000323577065
A69: 510 | B69: 0.003554813588 | C69: 0.0005332220382 | E69: 510 | F69: 0.00354186464 | G69: 0.000531279696 | I69: 510 | J69: 3.269596149e-06 | K69: 4.904394224e-07 | M69: 510 | N69: 0.002153926439 | O69: 0.0003230889659
A70: 520 | B70: 0.003549451332 | C70: 0.0005324176998 | E70: 520 | F70: 0.003536521917 | G70: 0.0005304782875 | I70: 520 | J70: 3.264664129e-06 | K70: 4.896996193e-07 | M70: 520 | N70: 0.00215067735 | O70: 0.0003226016025
A71: 530 | B71: 0.003544097161 | C71: 0.0005316145741 | E71: 530 | F71: 0.003531187249 | G71: 0.0005296780874 | I71: 530 | J71: 3.259739545e-06 | K71: 4.889609318e-07 | M71: 530 | N71: 0.00214743316 | O71: 0.000322114974
A72: 540 | B72: 0.003538751063 | C72: 0.0005308126595 | E72: 540 | F72: 0.003525860626 | G72: 0.0005288790939 | I72: 540 | J72: 3.254822387e-06 | K72: 4.882233581e-07 | M72: 540 | N72: 0.002144193862 | O72: 0.0003216290793
A73: 550 | B73: 0.003533413028 | C73: 0.0005300119542 | E73: 550 | F73: 0.003520542036 | G73: 0.0005280813053 | I73: 550 | J73: 3.249912645e-06 | K73: 4.874868967e-07 | M73: 550 | N73: 0.002140959449 | O73: 0.0003211439174
A74: 560 | B74: 0.003528083043 | C74: 0.0005292124565 | E74: 560 | F74: 0.003515231466 | G74: 0.00052728472 | I74: 560 | J74: 3.245010307e-06 | K74: 4.86751546e-07 | M74: 560 | N74: 0.002137729914 | O74: 0.0003206594871
A75: 570 | B75: 0.003522761098 | C75: 0.0005284141646 | E75: 570 | F75: 0.003509928907 | G75: 0.000526489336 | I75: 570 | J75: 3.240115363e-06 | K75: 4.860173044e-07 | M75: 570 | N75: 0.00213450525 | O75: 0.0003201757875
A76: 580 | B76: 0.003517447179 | C76: 0.0005276170769 | E76: 580 | F76: 0.003504634345 | G76: 0.0005256951518 | I76: 580 | J76: 3.235227802e-06 | K76: 4.852841703e-07 | M76: 580 | N76: 0.00213128545 | O76: 0.0003196928175
A77: 590 | B77: 0.003512141276 | C77: 0.0005268211914 | E77: 590 | F77: 0.003499347769 | G77: 0.0005249021654 | I77: 590 | J77: 3.230347613e-06 | K77: 4.84552142e-07 | M77: 590 | N77: 0.002128070506 | O77: 0.0003192105759
A78: 600 | B78: 0.003506843376 | C78: 0.0005260265064 | E78: 600 | F78: 0.003494069168 | G78: 0.0005241103752 | I78: 600 | J78: 3.225474786e-06 | K78: 4.838212179e-07 | M78: 600 | N78: 0.002124860412 | O78: 0.0003187290618
A79: 610 | B79: 0.003501553467 | C79: 0.00052523302 | E79: 610 | F79: 0.003488798528 | G79: 0.0005233197793 | I79: 610 | J79: 3.220609308e-06 | K79: 4.830913962e-07 | M79: 610 | N79: 0.00212165516 | O79: 0.0003182482739
A80: 620 | B80: 0.003496271537 | C80: 0.0005244407306 | E80: 620 | F80: 0.003483535839 | G80: 0.0005225303759 | I80: 620 | J80: 3.21575117e-06 | K80: 4.823626755e-07 | M80: 620 | N80: 0.002118454742 | O80: 0.0003177682113
A81: 630 | B81: 0.003490997575 | C81: 0.0005236496363 | E81: 630 | F81: 0.003478281088 | G81: 0.0005217421633 | I81: 630 | J81: 3.21090036e-06 | K81: 4.81635054e-07 | M81: 630 | N81: 0.002115259152 | O81: 0.0003172888728
A82: 640 | B82: 0.003485731569 | C82: 0.0005228597353 | E82: 640 | F82: 0.003473034264 | G82: 0.0005209551396 | I82: 640 | J82: 3.206056867e-06 | K82: 4.8090853e-07 | M82: 640 | N82: 0.002112068383 | O82: 0.0003168102574
A83: 650 | B83: 0.003480473506 | C83: 0.0005220710258 | E83: 650 | F83: 0.003467795354 | G83: 0.0005201693031 | I83: 650 | J83: 3.20122068e-06 | K83: 4.80183102e-07 | M83: 650 | N83: 0.002108882426 | O83: 0.0003163323639
A84: 660 | B84: 0.003475223374 | C84: 0.0005212835061 | E84: 660 | F84: 0.003462564347 | G84: 0.000519384652 | I84: 660 | J84: 3.196391788e-06 | K84: 4.794587682e-07 | M84: 660 | N84: 0.002105701276 | O84: 0.0003158551913
A85: 670 | B85: 0.003469981162 | C85: 0.0005204971742 | E85: 670 | F85: 0.00345734123 | G85: 0.0005186011845 | I85: 670 | J85: 3.19157018e-06 | K85: 4.78735527e-07 | M85: 670 | N85: 0.002102524923 | O85: 0.0003153787385
A86: 680 | B86: 0.003464746857 | C86: 0.0005197120285 | E86: 680 | F86: 0.003452125992 | G86: 0.0005178188988 | I86: 680 | J86: 3.186755845e-06 | K86: 4.780133768e-07 | M86: 680 | N86: 0.002099353363 | O86: 0.0003149030044
A87: 690 | B87: 0.003459520448 | C87: 0.0005189280672 | E87: 690 | F87: 0.003446918621 | G87: 0.0005170377932 | I87: 690 | J87: 3.181948773e-06 | K87: 4.772923159e-07 | M87: 690 | N87: 0.002096186586 | O87: 0.0003144279879
A88: 700 | B88: 0.003454301923 | C88: 0.0005181452884 | E88: 700 | F88: 0.003441719105 | G88: 0.0005162578658 | I88: 700 | J88: 3.177148952e-06 | K88: 4.765723427e-07 | M88: 700 | N88: 0.002093024586 | O88: 0.000313953688
A89: 710 | B89: 0.003449091269 | C89: 0.0005173636904 | E89: 710 | F89: 0.003436527432 | G89: 0.0005154791149 | I89: 710 | J89: 3.172356371e-06 | K89: 4.758534556e-07 | M89: 710 | N89: 0.002089867357 | O89: 0.0003134801035
A90: 720 | B90: 0.003443888476 | C90: 0.0005165832714 | E90: 720 | F90: 0.003431343591 | G90: 0.0005147015387 | I90: 720 | J90: 3.167571019e-06 | K90: 4.751356528e-07 | M90: 720 | N90: 0.002086714889 | O90: 0.0003130072334
A91: 730 | B91: 0.003438693531 | C91: 0.0005158040297 | E91: 730 | F91: 0.003426167569 | G91: 0.0005139251354 | I91: 730 | J91: 3.162792886e-06 | K91: 4.744189329e-07 | M91: 730 | N91: 0.002083567177 | O91: 0.0003125350766
A92: 740 | B92: 0.003433506422 | C92: 0.0005150259633 | E92: 740 | F92: 0.003420999355 | G92: 0.0005131499033 | I92: 740 | J92: 3.15802196e-06 | K92: 4.73703294e-07 | M92: 740 | N92: 0.002080424213 | O92: 0.000312063632
A93: 750 | B93: 0.003428327138 | C93: 0.0005142490707 | E93: 750 | F93: 0.003415838937 | G93: 0.0005123758406 | I93: 750 | J93: 3.153258232e-06 | K93: 4.729887347e-07 | M93: 750 | N93: 0.00207728599 | O93: 0.0003115928985
A94: 760 | B94: 0.003423155666 | C94: 0.00051347335 | E94: 760 | F94: 0.003410686304 | G94: 0.0005116029456 | I94: 760 | J94: 3.148501689e-06 | K94: 4.722752533e-07 | M94: 760 | N94: 0.002074152501 | O94: 0.0003111228752
A95: 770 | B95: 0.003417991996 | C95: 0.0005126987994 | E95: 770 | F95: 0.003405541443 | G95: 0.0005108312164 | I95: 770 | J95: 3.143752321e-06 | K95: 4.715628481e-07 | M95: 770 | N95: 0.002071023739 | O95: 0.0003106535608
A96: 780 | B96: 0.003412836114 | C96: 0.0005119254171 | E96: 780 | F96: 0.003400404342 | G96: 0.0005100606513 | I96: 780 | J96: 3.139010117e-06 | K96: 4.708515175e-07 | M96: 780 | N96: 0.002067899696 | O96: 0.0003101849544
A97: 790 | B97: 0.00340768801 | C97: 0.0005111532015 | E97: 790 | F97: 0.003395274991 | G97: 0.0005092912486 | I97: 790 | J97: 3.134275067e-06 | K97: 4.7014126e-07 | M97: 790 | N97: 0.002064780366 | O97: 0.0003097170549
A98: 800 | B98: 0.003402547672 | C98: 0.0005103821508 | E98: 800 | F98: 0.003390153377 | G98: 0.0005085230065 | I98: 800 | J98: 3.129547159e-06 | K98: 4.694320738e-07 | M98: 800 | N98: 0.002061665741 | O98: 0.0003092498612
A99: 810 | B99: 0.003397415087 | C99: 0.0005096122631 | E99: 810 | F99: 0.003385039489 | G99: 0.0005077559233 | I99: 810 | J99: 3.124826383e-06 | K99: 4.687239574e-07 | M99: 810 | N99: 0.002058555815 | O99: 0.0003087833722
A100: 820 | B100: 0.003392290245 | C100: 0.0005088435368 | E100: 820 | F100: 0.003379933314 | G100: 0.0005069899972 | I100: 820 | J100: 3.120112728e-06 | K100: 4.680169092e-07 | M100: 820 | N100: 0.002055450579 | O100: 0.0003083175869
A101: 830 | B101: 0.003387173134 | C101: 0.00050807597 | E101: 830 | F101: 0.003374834843 | G101: 0.0005062252264 | I101: 830 | J101: 3.115406184e-06 | K101: 4.673109275e-07 | M101: 830 | N101: 0.002052350028 | O101: 0.0003078525042
A102: 840 | B102: 0.003382063741 | C102: 0.0005073095611 | E102: 840 | F102: 0.003369744062 | G102: 0.0005054616093 | I102: 840 | J102: 3.110706739e-06 | K102: 4.666060108e-07 | M102: 840 | N102: 0.002049254153 | O102: 0.000307388123
A103: 850 | B103: 0.003376962055 | C103: 0.0005065443083 | E103: 850 | F103: 0.00336466096 | G103: 0.000504699144 | I103: 850 | J103: 3.106014383e-06 | K103: 4.659021574e-07 | M103: 850 | N103: 0.002046162949 | O103: 0.0003069244424
A104: 860 | B104: 0.003371868066 | C104: 0.0005057802099 | E104: 860 | F104: 0.003359585526 | G104: 0.0005039378289 | I104: 860 | J104: 3.101329105e-06 | K104: 4.651993657e-07 | M104: 860 | N104: 0.002043076408 | O104: 0.0003064614612
A105: 870 | B105: 0.00336678176 | C105: 0.000505017264 | E105: 870 | F105: 0.003354517748 | G105: 0.0005031776622 | I105: 870 | J105: 3.096650894e-06 | K105: 4.644976342e-07 | M105: 870 | N105: 0.002039994522 | O105: 0.0003059991784
A106: 880 | B106: 0.003361703127 | C106: 0.000504255469 | E106: 880 | F106: 0.003349457614 | G106: 0.0005024186421 | I106: 880 | J106: 3.091979741e-06 | K106: 4.637969612e-07 | M106: 880 | N106: 0.002036917286 | O106: 0.0003055375929
A107: 890 | B107: 0.003356632154 | C107: 0.0005034948232 | E107: 890 | F107: 0.003344405114 | G107: 0.000501660767 | I107: 890 | J107: 3.087315634e-06 | K107: 4.630973451e-07 | M107: 890 | N107: 0.002033844691 | O107: 0.0003050767037
A108: 900 | B108: 0.003351568831 | C108: 0.0005027353247 | E108: 900 | F108: 0.003339360235 | G108: 0.0005009040352 | I108: 900 | J108: 3.082658562e-06 | K108: 4.623987843e-07 | M108: 900 | N108: 0.002030776731 | O108: 0.0003046165097
A109: 910 | B109: 0.003346513146 | C109: 0.0005019769719 | E109: 910 | F109: 0.003334322965 | G109: 0.0005001484448 | I109: 910 | J109: 3.078008516e-06 | K109: 4.617012773e-07 | M109: 910 | N109: 0.002027713399 | O109: 0.0003041570099
A110: 920 | B110: 0.003341465087 | C110: 0.0005012197631 | E110: 920 | F110: 0.003329293295 | G110: 0.0004993939942 | I110: 920 | J110: 3.073365483e-06 | K110: 4.610048225e-07 | M110: 920 | N110: 0.002024654688 | O110: 0.0003036982032
A111: 930 | B111: 0.003336424643 | C111: 0.0005004636964 | E111: 930 | F111: 0.003324271211 | G111: 0.0004986406817 | I111: 930 | J111: 3.068729455e-06 | K111: 4.603094182e-07 | M111: 930 | N111: 0.002021600591 | O111: 0.0003032400887
A112: 940 | B112: 0.003331391802 | C112: 0.0004997087703 | E112: 940 | F112: 0.003319256703 | G112: 0.0004978885055 | I112: 940 | J112: 3.06410042e-06 | K112: 4.596150629e-07 | M112: 940 | N112: 0.002018551101 | O112: 0.0003027826651
A113: 950 | B113: 0.003326366553 | C113: 0.0004989549829 | E113: 950 | F113: 0.003314249759 | G113: 0.0004971374639 | I113: 950 | J113: 3.059478367e-06 | K113: 4.589217551e-07 | M113: 950 | N113: 0.002015506211 | O113: 0.0003023259316
A114: 960 | B114: 0.003321348884 | C114: 0.0004982023326 | E114: 960 | F114: 0.003309250368 | G114: 0.0004963875552 | I114: 960 | J114: 3.054863287e-06 | K114: 4.58229493e-07 | M114: 960 | N114: 0.002012465914 | O114: 0.000301869887
A115: 970 | B115: 0.003316338784 | C115: 0.0004974508176 | E115: 970 | F115: 0.003304258518 | G115: 0.0004956387777 | I115: 970 | J115: 3.050255168e-06 | K115: 4.575382752e-07 | M115: 970 | N115: 0.002009430203 | O115: 0.0003014145304
A116: 980 | B116: 0.003311336242 | C116: 0.0004967004363 | E116: 980 | F116: 0.003299274198 | G116: 0.0004948911297 | I116: 980 | J116: 3.045654e-06 | K116: 4.568481e-07 | M116: 980 | N116: 0.002006399071 | O116: 0.0003009598606
A117: 990 | B117: 0.003306341246 | C117: 0.0004959511869 | E117: 990 | F117: 0.003294297397 | G117: 0.0004941446096 | I117: 990 | J117: 3.041059773e-06 | K117: 4.56158966e-07 | M117: 990 | N117: 0.002003372511 | O117: 0.0003005058767
A118: 1000 | B118: 0.003301353784 | C118: 0.0004952030676 | E118: 1000 | F118: 0.003289328103 | G118: 0.0004933992155 | I118: 1000 | J118: 3.036472476e-06 | K118: 4.554708715e-07 | M118: 1000 | N118: 0.002000350517 | O118: 0.0003000525776
A121: Pollutant Linkage: Inert Restorati, Attenuation Layer, Beenham Grange Formation | E121: Pollutant Linkage: Inert Restorati, Attenuation Layer, Beenham Grange Formation, Groundwater | I121: Pollutant Linkage: Inert Restorati, Attenuation Layer, Beenham Grange Formation, River Enborne | M121: Pollutant Linkage: Inert Restorati, Attenuation Layer, Beenham Grange Formation, Stream A
A122: Remedial Target Concentrations in mg/L in Inert Restorati | E122: Remedial Target Concentrations in mg/L in Inert Restorati | I122: Remedial Target Concentrations in mg/L in Inert Restorati | M122: Remedial Target Concentrations in mg/L in Inert Restorati
A124: Time(years) | B124: Species1 | C124: Species2 | E124: Time(years) | F124: Species1 | G124: Species2 | I124: Time(years) | J124: Species1 | K124: Species2 | M124: Time(years) | N124: Species1 | O124: Species2
B125: Ammoniacal Nitrogen | C125: Lead | F125: Ammoniacal Nitrogen | G125: Lead | J125: Ammoniacal Nitrogen | K125: Lead | N125: Ammoniacal Nitrogen | O125: Lead
A126: 10 | B126: 272.0781888 | C126: 0.2045700668 | E126: 10 | F126: 337.395577 | G126: 0.2536808849 | I126: 10 | J126: 298811.3649 | K126: 1348.021195 | M126: 10 | N126: 451.8677255 | O126: 2.038501017
A127: 20 | B127: 118.3332146 | C127: 0.08897234179 | E127: 20 | F127: 124.7234435 | G127: 0.09377702515 | I127: 20 | J127: 128970.6482 | K127: 581.8224733 | M127: 20 | N127: 195.5938392 | O127: 0.8823782221
A128: 30 | B128: 91.20769578 | C128: 0.06857721487 | E128: 30 | F128: 93.34481308 | G128: 0.07018406998 | I128: 30 | J128: 99262.33146 | K128: 447.7999916 | M128: 30 | N128: 150.6211968 | O128: 0.6794941208
A129: 40 | B129: 81.24163556 | C129: 0.06108393651 | E129: 40 | F129: 82.32285846 | G129: 0.06189688606 | I129: 40 | J129: 88371.90026 | K129: 398.6702267 | M129: 40 | N129: 134.1212278 | O129: 0.6050581705
A130: 50 | B130: 76.54594143 | C130: 0.05755333942 | E130: 50 | F130: 77.22850468 | G130: 0.05806654487 | I130: 50 | J130: 83245.67805 | K130: 375.5444122 | M130: 50 | N130: 126.3516982 | O130: 0.570007661
A131: 60 | B131: 74.05685601 | C131: 0.05568184663 | E131: 60 | F131: 74.55445385 | G131: 0.05605598034 | I131: 60 | J131: 80529.73824 | K131: 363.2920522 | M131: 60 | N131: 122.2345259 | O131: 0.5514339512
A132: 70 | B132: 72.65392409 | C132: 0.05462701059 | E132: 70 | F132: 73.05490243 | G132: 0.05492849807 | I132: 70 | J132: 78999.33773 | K132: 356.3879898 | M132: 70 | N132: 119.9143227 | O132: 0.5409668692
A133: 80 | B133: 71.84022528 | C133: 0.05401520698 | E133: 80 | F133: 72.18682856 | G133: 0.05427581095 | I133: 80 | J133: 78111.78927 | K133: 352.3840118 | M133: 80 | N133: 118.5686852 | O133: 0.534896324
A134: 90 | B134: 71.36715831 | C134: 0.05365951753 | E134: 90 | F134: 71.68160908 | G134: 0.05389594667 | I134: 90 | J134: 77595.75314 | K134: 350.0560292 | M134: 90 | N134: 117.7863276 | O134: 0.5313668915
A135: 100 | B135: 71.09988547 | C135: 0.0534585605 | E135: 100 | F135: 71.39467087 | G135: 0.05368020366 | I135: 100 | J135: 77304.11771 | K135: 348.7403807 | M135: 100 | N135: 117.3442306 | O135: 0.529372469
A136: 110 | B136: 70.9609941 | C136: 0.05335413091 | E136: 110 | F136: 71.24347167 | G136: 0.05356652006 | I136: 110 | J136: 77152.44802 | K136: 348.0561565 | M136: 110 | N136: 117.114378 | O136: 0.5283355398
A137: 120 | B137: 70.90415642 | C137: 0.0533113958 | E137: 120 | F137: 71.17881678 | G137: 0.05351790735 | I137: 120 | J137: 77090.22456 | K137: 347.7754492 | M137: 120 | N137: 117.0201683 | O137: 0.5279105337
A138: 130 | B138: 70.90076713 | C138: 0.05330884746 | E138: 130 | F138: 71.17042595 | G138: 0.05351159846 | I138: 130 | J138: 77086.25897 | K138: 347.7575593 | M138: 130 | N138: 117.0143085 | O138: 0.5278840987
A139: 140 | B139: 70.93273168 | C139: 0.05333288096 | E139: 140 | F139: 71.1991921 | G139: 0.05353322714 | I139: 140 | J139: 77120.82527 | K139: 347.9134974 | M139: 140 | N139: 117.0668855 | O139: 0.5281212879
A140: 150 | B140: 70.98838307 | C140: 0.05337472411 | E140: 150 | F140: 71.25281952 | G140: 0.05357354851 | I140: 150 | J140: 77181.20584 | K140: 348.185891 | M140: 150 | N140: 117.1586129 | O140: 0.5285350957
A141: 160 | B141: 71.06008134 | C141: 0.05342863259 | E141: 160 | F141: 71.32326946 | G141: 0.05362651839 | I141: 160 | J141: 77259.07345 | K141: 348.5371735 | M141: 160 | N141: 117.2768621 | O141: 0.5290685508
A142: 170 | B142: 71.14275943 | C142: 0.05349079657 | E142: 170 | F142: 71.40521745 | G142: 0.05368813342 | I142: 170 | J142: 77348.90561 | K142: 348.9424313 | M142: 170 | N142: 117.4132578 | O142: 0.5296838698
A143: 180 | B143: 71.23302066 | C143: 0.05355866215 | E143: 180 | F143: 71.49509825 | G143: 0.05375571297 | I143: 180 | J143: 77447.00054 | K143: 349.3849648 | M143: 180 | N143: 117.5621858 | O143: 0.5303557255
A144: 190 | B144: 71.32856734 | C144: 0.05363050176 | E144: 190 | F144: 71.59050246 | G144: 0.05382744546 | I144: 190 | J144: 77550.85432 | K144: 349.8534781 | M144: 190 | N144: 117.7198486 | O144: 0.531066986
A145: 200 | B145: 71.42783306 | C145: 0.05370513764 | E145: 200 | F145: 71.68978885 | G145: 0.05390209688 | I145: 200 | J145: 77658.75998 | K145: 350.3402706 | M145: 200 | N145: 117.8836572 | O145: 0.5318059721
A146: 210 | B146: 71.52974264 | C146: 0.05378176138 | E146: 210 | F146: 71.79183175 | G146: 0.05397882087 | I146: 210 | J146: 77769.54596 | K146: 350.8400569 | M146: 210 | N146: 118.0518347 | O146: 0.5325646676
A147: 220 | B147: 71.63355372 | C147: 0.05385981483 | E147: 220 | F147: 71.89585439 | G147: 0.05405703338 | I147: 220 | J147: 77882.40333 | K147: 351.349188 | M147: 220 | N147: 118.2231542 | O147: 0.5333375377
A148: 230 | B148: 71.73875103 | C148: 0.05393891055 | E148: 230 | F148: 72.00131793 | G148: 0.05413632927 | I148: 230 | J148: 77996.77065 | K148: 351.8651308 | M148: 230 | N148: 118.3967642 | O148: 0.5341207407
A149: 240 | B149: 71.84497523 | C149: 0.05401877837 | E149: 240 | F149: 72.10784678 | G149: 0.05421642615 | I149: 240 | J149: 78112.25641 | K149: 352.3861191 | M149: 240 | N149: 118.5720708 | O149: 0.5349115977
A150: 250 | B150: 71.95197469 | C150: 0.05409922909 | E150: 250 | F150: 72.21517806 | G150: 0.05429712636 | I150: 250 | J150: 78228.58642 | K150: 352.9109162 | M150: 250 | N150: 118.7486582 | O150: 0.5357082326
A151: 260 | B151: 72.05957255 | C151: 0.05418012973 | E151: 260 | F151: 72.32312706 | G151: 0.05437829102 | I151: 260 | J151: 78345.568 | K151: 353.4386526 | M151: 260 | N151: 118.9262341 | O151: 0.5365093269
A152: 270 | B152: 72.16764406 | C152: 0.05426138651 | E152: 270 | F152: 72.43156357 | G152: 0.05445982223 | I152: 270 | J152: 78463.06524 | K152: 353.9687154 | M152: 270 | N152: 119.1045924 | O152: 0.5373139507
A153: 280 | B153: 72.27610102 | C153: 0.0543429331 | E153: 280 | F153: 72.54039551 | G153: 0.05454165076 | I153: 280 | J153: 78580.98203 | K153: 354.5006708 | M153: 280 | N153: 119.2835873 | O153: 0.5381214464
A154: 290 | B154: 72.38488086 | C154: 0.05442472245 | E154: 290 | F154: 72.64955761 | G154: 0.05462372753 | I154: 290 | J154: 78699.25021 | K154: 355.0342115 | M154: 290 | N154: 119.4631154 | O154: 0.5389313474
A155: 300 | B155: 72.4939391 | C155: 0.05450672113 | E155: 300 | F155: 72.75900349 | G155: 0.05470601766 | I155: 300 | J155: 78817.82133 | K155: 355.5691188 | M155: 300 | N155: 119.6431031 | O155: 0.5397433224
A156: 310 | B156: 72.60324409 | C156: 0.05458890533 | E156: 310 | F156: 72.86870013 | G156: 0.05478849634 | I156: 310 | J156: 78936.6609 | K156: 356.1052371 | M156: 310 | N156: 119.8234983 | O156: 0.5405571353
A157: 320 | B157: 72.71277326 | C157: 0.05467125809 | E157: 320 | F157: 72.97862399 | G157: 0.05487114585 | I157: 320 | J157: 79055.74432 | K157: 356.6424556 | M157: 320 | N157: 120.0042636 | O157: 0.5413726177
A158: 330 | B158: 72.82251047 | C158: 0.05475376727 | E158: 330 | F158: 73.08875825 | G158: 0.05495395357 | I158: 330 | J158: 79175.05403 | K158: 357.1806949 | M158: 330 | N158: 120.1853723 | O158: 0.5421896495
A159: 340 | B159: 72.93244424 | C159: 0.05483642424 | E159: 340 | F159: 73.19909094 | G159: 0.05503691048 | I159: 340 | J159: 79294.57751 | K159: 357.7198986 | M159: 340 | N159: 120.3668055 | O159: 0.5430081451
A160: 350 | B160: 73.04256636 | C160: 0.05491922283 | E160: 350 | F160: 73.30961349 | G160: 0.05512001014 | I160: 350 | J160: 79414.30582 | K160: 358.2600262 | M160: 350 | N160: 120.5485495 | O160: 0.5438280431
A161: 360 | B161: 73.15287098 | C161: 0.05500215863 | E161: 360 | F161: 73.4203198 | G161: 0.05520324797 | I161: 360 | J161: 79534.23257 | K161: 358.8010492 | M161: 360 | N161: 120.7305948 | O161: 0.5446493
A162: 370 | B162: 73.26335394 | C162: 0.05508522853 | E162: 370 | F162: 73.53120554 | G162: 0.05528662071 | I162: 370 | J162: 79654.35325 | K162: 359.342947 | M162: 370 | N162: 120.9129345 | O162: 0.5454718849
A163: 380 | B163: 73.37401232 | C163: 0.05516843031 | E163: 380 | F163: 73.64226766 | G163: 0.05537012606 | I163: 380 | J163: 79774.66468 | K163: 359.8857053 | M163: 380 | N163: 121.0955637 | O163: 0.546295776
A164: 390 | B164: 73.48484406 | C164: 0.05525176245 | E164: 390 | F164: 73.75350399 | G164: 0.0554537624 | I164: 390 | J164: 79895.1646 | K164: 360.429314 | M164: 390 | N164: 121.278479 | O164: 0.5471209578
A165: 400 | B165: 73.59584775 | C165: 0.05533522387 | E165: 400 | F165: 73.86491306 | G165: 0.05553752862 | I165: 400 | J165: 80015.85147 | K165: 360.973766 | M165: 400 | N165: 121.4616781 | O165: 0.5479474199
A166: 410 | B166: 73.70702242 | C166: 0.05541881385 | E166: 410 | F166: 73.97649386 | G166: 0.05562142396 | I166: 410 | J166: 80136.72424 | K166: 361.5190567 | M166: 410 | N166: 121.6451594 | O166: 0.548775155
A167: 420 | B167: 73.81836744 | C167: 0.05550253191 | E167: 420 | F167: 74.08824572 | G167: 0.05570544791 | I167: 420 | J167: 80257.78224 | K167: 362.065183 | M167: 420 | N167: 121.8289218 | O167: 0.5496041584
A168: 430 | B168: 73.92988242 | C168: 0.05558637776 | E168: 430 | F168: 74.20016823 | G168: 0.05578960017 | I168: 430 | J168: 80379.02502 | K168: 362.612143 | M168: 430 | N168: 122.0129647 | O168: 0.5504344274
A169: 440 | B169: 74.04156716 | C169: 0.05567035124 | E169: 440 | F169: 74.31226116 | G169: 0.05587388057 | I169: 440 | J169: 80500.45237 | K169: 363.1599355 | M169: 440 | N169: 122.1972878 | O169: 0.5512659601
A170: 450 | B170: 74.15342155 | C170: 0.0557544523 | E170: 450 | F170: 74.4245244 | G170: 0.05595828902 | I170: 450 | J170: 80622.06418 | K170: 363.7085602 | M170: 450 | N170: 122.3818909 | O170: 0.5520987561
A171: 460 | B171: 74.26544562 | C171: 0.05583868092 | E171: 460 | F171: 74.53695795 | G171: 0.05604282553 | I171: 460 | J171: 80743.86047 | K171: 364.2580171 | M171: 460 | N171: 122.5667741 | O171: 0.5529328154
A172: 470 | B172: 74.37763943 | C172: 0.05592303716 | E172: 470 | F172: 74.64956189 | G172: 0.05612749014 | I172: 470 | J172: 80865.8413 | K172: 364.8083066 | M172: 470 | N172: 122.7519373 | O172: 0.5537681384
A173: 480 | B173: 74.4900031 | C173: 0.05600752113 | E173: 480 | F173: 74.76233632 | G173: 0.05621228295 | I173: 480 | J173: 80988.00682 | K173: 365.3594292 | M173: 480 | N173: 122.937381 | O173: 0.5546047261
A174: 490 | B174: 74.60253679 | C174: 0.05609213293 | E174: 490 | F174: 74.87528141 | G174: 0.05629720407 | I174: 490 | J174: 81110.35719 | K174: 365.9113858 | M174: 490 | N174: 123.1231052 | O174: 0.5554425797
A175: 500 | B175: 74.71524069 | C175: 0.0561768727 | E175: 500 | F175: 74.98839733 | G175: 0.05638225363 | I175: 500 | J175: 81232.89261 | K175: 366.4641772 | M175: 500 | N175: 123.3091103 | O175: 0.5562817006
A176: 510 | B176: 74.82811501 | C176: 0.05626174061 | E176: 510 | F176: 75.1016843 | G176: 0.0564674318 | I176: 510 | J176: 81355.61332 | K176: 367.0178044 | M176: 510 | N176: 123.4953967 | O176: 0.5571220902
A177: 520 | B177: 74.94115995 | C177: 0.0563467368 | E177: 520 | F177: 75.21514252 | G177: 0.05655273874 | I177: 520 | J177: 81478.51953 | K177: 367.5722686 | M177: 520 | N177: 123.6819646 | O177: 0.5579637503
A178: 530 | B178: 75.05437575 | C178: 0.05643186147 | E178: 530 | F178: 75.32877223 | G178: 0.05663817461 | I178: 530 | J178: 81601.61152 | K178: 368.1275708 | M178: 530 | N178: 123.8688146 | O178: 0.5588066825
A179: 540 | B179: 75.16776265 | C179: 0.05651711478 | E179: 540 | F179: 75.44257366 | G179: 0.05672373959 | I179: 540 | J179: 81724.88952 | K179: 368.6837121 | M179: 540 | N179: 124.0559469 | O179: 0.5596508885
A180: 550 | B180: 75.28132089 | C180: 0.05660249691 | E180: 550 | F180: 75.55654706 | G180: 0.05680943388 | I180: 550 | J180: 81848.35382 | K180: 369.2406939 | M180: 550 | N180: 124.2433621 | O180: 0.5604963702
A181: 560 | B181: 75.39505072 | C181: 0.05668800806 | E181: 560 | F181: 75.67069268 | G181: 0.05689525765 | I181: 560 | J181: 81972.00466 | K181: 369.7985173 | M181: 560 | N181: 124.4310604 | O181: 0.5613431295
A182: 570 | B182: 75.50895239 | C182: 0.05677364841 | E182: 570 | F182: 75.78501077 | G182: 0.0569812111 | I182: 570 | J182: 82095.84234 | K182: 370.3571835 | M182: 570 | N182: 124.6190423 | O182: 0.5621911682
A183: 580 | B183: 75.62302615 | C183: 0.05685941816 | E183: 580 | F183: 75.89950157 | G183: 0.05706729442 | I183: 580 | J183: 82219.86712 | K183: 370.9166938 | M183: 580 | N183: 124.8073082 | O183: 0.5630404881
A184: 590 | B184: 75.73727226 | C184: 0.05694531748 | E184: 590 | F184: 76.01416536 | G184: 0.05715350779 | I184: 590 | J184: 82344.07929 | K184: 371.4770494 | M184: 590 | N184: 124.9958586 | O184: 0.5638910913
A185: 600 | B185: 75.85169097 | C185: 0.05703134659 | E185: 600 | F185: 76.12900238 | G185: 0.05723985142 | I185: 600 | J185: 82468.47911 | K185: 372.0382516 | M185: 600 | N185: 125.1846938 | O185: 0.5647429795
A186: 610 | B186: 75.96628254 | C186: 0.05711750567 | E186: 610 | F186: 76.2440129 | G186: 0.05732632549 | I186: 610 | J186: 82593.06688 | K186: 372.6003017 | M186: 610 | N186: 125.3738143 | O186: 0.5655961548
A187: 620 | B187: 76.08104724 | C187: 0.05720379492 | E187: 620 | F187: 76.35919717 | G187: 0.0574129302 | I187: 620 | J187: 82717.84287 | K187: 373.1632009 | M187: 620 | N187: 125.5632205 | O187: 0.566450619
A188: 630 | B188: 76.19598532 | C188: 0.05729021452 | E188: 630 | F188: 76.47455546 | G188: 0.05749966576 | I188: 630 | J188: 82842.80737 | K188: 373.7269506 | M188: 630 | N188: 125.7529129 | O188: 0.5673063741
A189: 640 | B189: 76.31109704 | C189: 0.05737676469 | E189: 640 | F189: 76.59008803 | G189: 0.05758653235 | I189: 640 | J189: 82967.96066 | K189: 374.2915519 | M189: 640 | N189: 125.9428919 | O189: 0.5681634221
A190: 650 | B190: 76.42638267 | C190: 0.05746344562 | E190: 650 | F190: 76.70579514 | G190: 0.05767353018 | I190: 650 | J190: 83093.30303 | K190: 374.8570061 | M190: 650 | N190: 126.1331579 | O190: 0.5690217649
A191: 660 | B191: 76.54184246 | C191: 0.05755025749 | E191: 660 | F191: 76.82167705 | G191: 0.05776065944 | I191: 660 | J191: 83218.83476 | K191: 375.4233147 | M191: 660 | N191: 126.3237113 | O191: 0.5698814043
A192: 670 | B192: 76.65747669 | C192: 0.05763720052 | E192: 670 | F192: 76.93773403 | G192: 0.05784792032 | I192: 670 | J192: 83344.55613 | K192: 375.9904788 | M192: 670 | N192: 126.5145526 | O192: 0.5707423425
A193: 680 | B193: 76.77328561 | C193: 0.05772427489 | E193: 680 | F193: 77.05396634 | G193: 0.05793531304 | I193: 680 | J193: 83470.46743 | K193: 376.5584997 | M193: 680 | N193: 126.7056822 | O193: 0.5716045814
A194: 690 | B194: 76.88926948 | C194: 0.05781148081 | E194: 690 | F194: 77.17037425 | G194: 0.05802283778 | I194: 690 | J194: 83596.56896 | K194: 377.1273787 | M194: 690 | N194: 126.8971006 | O194: 0.5724681228
A195: 700 | B195: 77.00542858 | C195: 0.05789881848 | E195: 700 | F195: 77.28695802 | G195: 0.05811049475 | I195: 700 | J195: 83722.86098 | K195: 377.6971172 | M195: 700 | N195: 127.0888081 | O195: 0.5733329688
A196: 710 | B196: 77.12176316 | C196: 0.05798628809 | E196: 710 | F196: 77.40371792 | G196: 0.05819828415 | I196: 710 | J196: 83849.34381 | K196: 378.2677164 | M196: 710 | N196: 127.2808052 | O196: 0.5741991214
A197: 720 | B197: 77.23827349 | C197: 0.05807388984 | E197: 720 | F197: 77.52065421 | G197: 0.05828620617 | I197: 720 | J197: 83976.01771 | K197: 378.8391777 | M197: 720 | N197: 127.4730925 | O197: 0.5750665825
A198: 730 | B198: 77.35495984 | C198: 0.05816162394 | E198: 730 | F198: 77.63776716 | G198: 0.05837426102 | I198: 730 | J198: 84102.88299 | K198: 379.4115022 | M198: 730 | N198: 127.6656702 | O198: 0.5759353541
A199: 740 | B199: 77.47182247 | C199: 0.05824949058 | E199: 740 | F199: 77.75505704 | G199: 0.0584624489 | I199: 740 | J199: 84229.93992 | K199: 379.9846914 | M199: 740 | N199: 127.8585388 | O199: 0.5768054382
A200: 750 | B200: 77.58886165 | C200: 0.05833748996 | E200: 750 | F200: 77.87252411 | G200: 0.05855077 | I200: 750 | J200: 84357.18881 | K200: 380.5587465 | M200: 750 | N200: 128.0516988 | O200: 0.5776768368
A201: 760 | B201: 77.70607764 | C201: 0.05842562229 | E201: 760 | F201: 77.99016864 | G201: 0.05863922454 | I201: 760 | J201: 84484.62993 | K201: 381.1336689 | M201: 760 | N201: 128.2451507 | O201: 0.5785495518
A202: 770 | B202: 77.82347072 | C202: 0.05851388776 | E202: 770 | F202: 78.1079909 | G202: 0.05872781271 | I202: 770 | J202: 84612.26359 | K202: 381.7094598 | M202: 770 | N202: 128.4388947 | O202: 0.5794235853
A203: 780 | B203: 77.94104114 | C203: 0.05860228657 | E203: 780 | F203: 78.22599116 | G203: 0.05881653471 | I203: 780 | J203: 84740.09006 | K203: 382.2861206 | M203: 780 | N203: 128.6329315 | O203: 0.5802989392
A204: 790 | B204: 78.05878919 | C204: 0.05869081894 | E204: 790 | F204: 78.34416968 | G204: 0.05890539074 | I204: 790 | J204: 84868.10964 | K204: 382.8636525 | M204: 790 | N204: 128.8272614 | O204: 0.5811756155
A205: 800 | B205: 78.17671511 | C205: 0.05877948505 | E205: 800 | F205: 78.46252675 | G205: 0.05899438101 | I205: 800 | J205: 84996.32263 | K205: 383.442057 | M205: 800 | N205: 129.0218849 | O205: 0.5820536162
A206: 810 | B206: 78.2948192 | C206: 0.05886828511 | E206: 810 | F206: 78.58106261 | G206: 0.05908350572 | I206: 810 | J206: 85124.72932 | K206: 384.0213353 | M206: 810 | N206: 129.2168024 | O206: 0.5829329433
A207: 820 | B207: 78.4131017 | C207: 0.05895721933 | E207: 820 | F207: 78.69977756 | G207: 0.05917276508 | I207: 820 | J207: 85253.32999 | K207: 384.6014887 | M207: 820 | N207: 129.4120144 | O207: 0.5838135989
A208: 830 | B208: 78.5315629 | C208: 0.0590462879 | E208: 830 | F208: 78.81867185 | G208: 0.05926215928 | I208: 830 | J208: 85382.12494 | K208: 385.1825185 | M208: 830 | N208: 129.6075213 | O208: 0.5846955849
A209: 840 | B209: 78.65020307 | C209: 0.05913549103 | E209: 840 | F209: 78.93774575 | G209: 0.05935168854 | I209: 840 | J209: 85511.11447 | K209: 385.7644262 | M209: 840 | N209: 129.8033236 | O209: 0.5855789034
A210: 850 | B210: 78.76902246 | C210: 0.05922482892 | E210: 850 | F210: 79.05699955 | G210: 0.05944135305 | I210: 850 | J210: 85640.29886 | K210: 386.3472129 | M210: 850 | N210: 129.9994217 | O210: 0.5864635563
... 2497 more rows

Sheet User_Water_Balance
A1: Input | C1: RAINFALL
A2: Calculation | C2: Annual Effective Rainfall | D2: 255 | E2: mm | H2: FLUX AND DILUTION CALCULATION
C3: Effective Rainfall | D3: =D2/s_per_year/1000 -> 8.080462393e-09 | E3: m/s
H4: Void A
C5: VOID PARAMETERS | H5: Max Elevation of void surface | I5: =maxele_a -> 62.16 | J5: mAOD
C6: Void Area | D6: 191007 | E6: m2 | H6: Average GW head downstream | I6: =gwele_a -> 57.5 | J6: mAOD
C7: Void Perimeter | D7: 1977 | E7: m | H7: Distance from centre of void to perimeter | I7: =distancetoedge_a -> 245 | J7: m
H8: Average depth of restoration material | I8: =thick_a -> 6.3 | J8: m
C9: Restoration material thickness | D9: =maxele_a-D11 -> 6.3 | E9: m | H9: Perimeter of void | I9: =peri_a -> 1977 | J9: m
H10: K | I10: =AL_K -> 1e-07 | J10: m/s
C11: Base of Void A | D11: 55.86 | E11: m AOD | H11: QS | I11: =((I5-I6)/I7)*I8*I9*I10 -> 2.369010857e-05 | J11: m3/s
C12: Maximum elevation | D12: 62.16 | E12: m AOD
H13: Qer_a | I13: =effective_rainfall*area_a -> 0.00154342488 | J13: m3/s
C14: GW elevation at perimeter | D14: 57.5 | E14: m AOD
H15: QRO_a | I15: =I13-I11 -> 0.001519734772 | J15: m3/s
C16: Distance from centre void to edge | D16: 245 | E16: m
C18: Total Volume of restoration material | D18: 1153000 | E18: m3
C19: Volume in Void A | D19: 412336.2049 | E19: m3
C22: AQUIFER PROPERTIES
C24: Attenuation Layer Hydraulic Conductivity | D24: 1e-07 | E24: m/s
C25: Beenham Grange Formation Hydraulic Conductivity | D25: 0.001412 | E25: m/s
C26: Attenuation Layer Hydraulic Gradient | D26: =(maxele_a-gwele_a)/distancetoedge_a -> 0.01902040816 | E26: -
C27: Beenham Grange Formation Hydraulic Gradient | D27: 0.003 | E27: m/s
C28: Attenuation Layer Bulk Density | D28: 2000 | E28: kg/m3
C29: Beenham Grange Formation Bulk Density | D29: 1600 | E29: kg/m3
C30: Attenuation Layer Porosity | D30: 0.05 | E30: -
C31: Beenham Grange Formation Porosity | D31: 0.2 | E31: -
C32: Tortuosity | D32: 5
C34: RECEPTOR TRAVEL DISTANCES
C36: Attenutaion Layer Travel Distance | D36: 1 | E36: m
C37: Distance to River Enborne | D37: 40 | E37: m
C38: Distance to GW Receptor | D38: 20 | E38: m
C39: Distance to Stream A | D39: 25 | E39: m
C41: RIVER FLOWS
C43: River Enborne Q95 | D43: 0.168 | E43: m3/s
C44: Stream A Q95 | D44: 0.01 | E44: m3/s

Sheet User_Attenuation_Parameters
D2: Attenuation Layer | G2: Beenham Grange Formation
A3: Parameter | D3: Kd (L/kg) | E3: Comment | G3: Kd (L/kg) | H3: Comment
A4: Ammoniacial Nitrogen | D4: 0.5 | E4: Mid-range value for engineered clay barriers in Table 4.1 of Buss et al. (2003) | G4: 0 | H4: Conservative Assumption
A5: Arsenic | B5: As | C5: Haz | D5: 137 | E5: Midpoint from range by Golder Associates (2007) | G5: 25 | H5: Minimum value from range by Golder Associates (2007)
A6: Barium | B6: Ba | C6: Non Haz | D6: 17 | E6: Value at pH 8 (representative of Water Chemistry) for unspecified material by Golder Associates (2003) | G6: 17 | H6: Value at pH 8 (representative of Water Chemistry) for unspecified material by Golder Associates (2003)
A7: Cadmium | B7: Cd | C7: Non Haz | D7: 222 | E7: Value for glacial till (representative of clayey conditions) Golder Associates (2003) | G7: 74 | H7: Value for sand Golder Associates (2003)
A8: Total Chromium | B8: Cr total | C8: Haz | D8: 966 | E8: Value for glacial till (representative of clayey conditions) Golder Associates (2003) | G8: 67 | H8: Value for sand Golder Associates (2003)
A9: Copper | B9: Cu | C9: Non Haz | D9: 126.8 | E9: Value for glacial till (representative of clayey conditions) Golder Associates (2003) | G9: 295 | H9: Value for unspecified conditions, Golder Associates(2003)
A10: Mercury | B10: Hg | C10: Haz | D10: 2142 | E10: Midpoint from range by Golder Associates (2007) | G10: 450 | H10: Value for sand Golder Associates (2003)
A11: Molybdenum | B11: Mo | C11: Non Haz | D11: 110 | E11: Value for unspecified conditions, Golder Associates(2003) | G11: 110 | H11: Value for unspecified conditions, Golder Associates(2003)
A12: Nickel | B12: Ni | C12: Non Haz | D12: 410 | E12: Midpoint from range by Golder Associates (2007) | G12: 400 | H12: Value for sand Golder Associates (2003)
A13: Lead | B13: Pb | C13: Haz | D13: 434.6 | E13: Value for glacial till (representative of clayey conditions) Golder Associates (2003) | G13: 270 | H13: Value for sand Golder Associates (2003)
A14: Antimony | B14: Sb | C14: Non Haz | D14: 140 | E14: Geometric mean value for clay (Sheppard et al., 2009) | G14: 17 | H14: Value for sand Golder Associates (2003)
A15: Selenium | B15: Se | C15: Non Haz | D15: 9.5 | E15: Value for unspecified conditions, Golder Associates(2003) | G15: 9.5 | H15: Value for unspecified conditions, Golder Associates(2003)
A16: Zinc | B16: Zn | C16: Non Haz | D16: 20.7 | E16: Value for glacial till (representative of clayey conditions) Golder Associates (2003) | G16: 200 | H16: Value for sand Golder Associates (2003)
A17: Chloride | B17: Cl | C17: Non Haz | D17: 0 | E17: assume zero retardation | G17: 0 | H17: assume zero retardation
A18: Fluoride | B18: F | C18: Non Haz
A19: Sulphate(a) | B19: SO4 | C19: Non Haz | D19: 0 | E19: assume zero retardation | G19: 0 | H19: assume zero retardation
C22: Free Water Diffusion Coefficient | D22: 2e-09

Sheet User_ScreeningAssessment_VoidA
A1: Waste Source Screening Assessment - Groundwater South of River Enborne
A2: Chemical Name | B2: Symbol | C2: Haz / Non Haz | D2: Pass/Fail | E2: Source Term concentration (mg/l) | F2: Max acceptable concentration (mg/l) | G2: Target Concentration to assess against (mg/l) | H2: UK DWS (mg/l) | I2: UKTAG Quantification Limit (mg/l) | J2: Baseline 95th percentile concentration in monitoring BH (mg/l) | K2: Comment
A3: Arsenic | B3: As | C3: Haz | D3: =IF(E3<=F3,"Pass","FAIL") -> Pass | E3: 0.06 | F3: =G3/B$21 -> 0.09642289379 | G3: =MIN(H3:J3) -> 0.00148 | H3: 0.01 | I3: 0.005 | J3: 0.00148 | P3: =F3/E3 -> 1.60704823
A4: Barium | B4: Ba | C4: Non Haz | D4: =IF(E4<=F4,"Pass","FAIL") -> FAIL | E4: 4 | F4: =G4/B$21 -> 2.524585902 | G4: 0.03875 | J4: 0.03875 | P4: 0.6311464754
A5: Cadmium | B5: Cd | C5: Non Haz | D5: FAIL | E5: 0.02 | F5: 0.01303012078 | G5: 0.0002 | H5: 0.005 | J5: 0.0002 | P5: 0.6515060391
A6: Total Chromium | B6: Cr total | C6: Haz | D6: FAIL | E6: 0.1 | F6: 0.03257530196 | G6: 0.0005 | H6: 0.05 | I6: 0.001 | J6: 0.0005 | K6: Chromium VI hazardous. Most WIF's only include total chromium so assume all chromium is chromium VI which is very conservative. | P6: 0.3257530196
A7: Copper | B7: Cu | C7: Non Haz | D7: =IF(E7<=F7,"Pass","FAIL") -> FAIL | E7: 0.6 | F7: 0.2983897659 | G7: 0.00458 | H7: 2 | J7: 0.00458 | P7: 0.4973162765
A8: Mercury | B8: Hg | C8: Haz | D8: FAIL | E8: 0.002 | F8: 0.001303012078 | G8: 2e-05 | H8: 0.001 | I8: 2e-05 | J8: 5e-05 | K8: Concentrations in all samples were below LOD | P8: 0.6515060391
A9: Molybdenum | B9: Mo | C9: Non Haz | D9: FAIL | E9: 0.2 | F9: 0.117271087 | G9: 0.0018 | J9: 0.0018 | P9: 0.5863554352
A10: Nickel | B10: Ni | C10: Non Haz | D10: Pass | E10: 0.12 | F10: 0.3909036235 | G10: 0.006 | H10: 0.02 | J10: 0.006 | P10: 3.257530196
A11: Lead | B11: Pb | C11: Haz | D11: FAIL | E11: 0.15 | F11: 0.001303012078 | G11: 2e-05 | H11: 0.01 | I11: 2e-05 | J11: 0.002 | P11: 0.008686747189
A12: Antimony | B12: Sb | C12: Non Haz | D12: FAIL | E12: 0.1 | F12: 0.03257530196 | G12: 0.0005 | H12: 0.005 | J12: 0.0005 | K12: Concentrations in all samples were below LOD | P12: 0.3257530196
A13: Selenium | B13: Se | C13: Non Haz | D13: Pass | E13: 0.04 | F13: 0.117271087 | G13: 0.0018 | H13: 0.01 | J13: 0.0018 | P13: 2.931777176
A14: Zinc | B14: Zn | C14: Non Haz | D14: Pass | E14: 1.2 | F14: 2.654887109 | G14: 0.04075 | J14: 0.04075 | P14: 2.212405925
A15: Chloride | B15: Cl | C15: Non Haz | D15: Pass | E15: 460 | F15: 3439.951887 | G15: 52.8 | H15: 250 | J15: 52.8 | P15: 7.478156275
A16: Fluoride | B16: F | C16: Non Haz | D16: Pass | E16: 2.5 | F16: 13.03012078 | G16: 0.2 | H16: 1.5 | J16: 0.2 | P16: 5.212048313
A17: Sulphate(a) | B17: SO4 | C17: Non Haz | D17: Pass | E17: 1500 | F17: 16287.65098 | G17: 250 | H17: 250 | J17: 453.6 | P17: 10.85843399
A18: Ammoniacal N | B18: Nh3-N | C18: Non Haz | D18: =IF(E18<=F18,"Pass","FAIL") -> Pass | E18: 1 | F18: =G18/B$21 -> 25.40873553 | G18: =MIN(H18:J18) -> 0.39 | H18: 0.39 | J18: 0.9
A19: Instantaneous Dilution | B19: =Q_RO -> 0.001519734772 | C19: m3/s
A20: Q Side | B20: =Qside_a -> 2.369010857e-05 | C20: m3/s
A21: Dilution Factor | B21: =B20/(B19+B20) -> 0.01534905189
